{"text_format":"1","workbook":"xlsx","n_sheets":1,"sheets":["مستجد 41"],"not_rendered":{"charts":0,"images":2,"macros":1,"external_links":2,"defined_names":23,"comments":0,"pivot_tables":0},"unopened":[],"bounds":{"document_bytes":16777216,"sheet_cells":100000,"rows_first":2000,"rows_last":500,"rows_between":2000,"halvings":0,"cell_chars":16384,"cell_head_chars":4096},"cells_cut":0,"cells_raw":0,"read":"whole","date_system":"1900"}

{"sheet":"مستجد 41","index":0,"n_rows":399,"n_cols":293,"rows_kept":399,"cut":false,"hidden":false,"merged":[[0,1,0,254],[8,11,9,11],[8,12,9,12],[8,7,9,7],[8,9,8,10],[2,1,2,2],[8,20,9,20],[8,254,9,254],[6,1,6,2],[7,1,7,2],[3,10,6,11],[4,1,4,2],[8,15,9,15],[8,16,9,16],[8,18,9,18],[8,1,9,1],[8,255,9,255],[8,2,9,2],[8,3,9,3],[8,4,9,4],[8,5,9,5],[8,13,9,13],[8,14,9,14],[8,17,9,17],[8,6,9,6]]}
[null,"لا تكتب شيئ فى الاعمدة الأتية : المسلسل ..النوع .. تاريخ الميلاد ..السن يوم وشهر وسنه ...اسم ولى الامر لانها تحتوى على معادلات تظهر اليا",null,null,null,null,null,null,null,null,null,null,null,null,null,null,null,null,null,null,null,null,null,null,null,null,null,null,null,null,null,null,null,null,null,null,null,null,null,null,null,null,null,null,null,null,null,null,null,null,null,null,null,null,null,null,null,null,null,null,null,null,null,null,null,null,null,null,null,null,null,null,null,null,null,null,null,null,null,null,null,null,null,null,null,null,null,null,null,null,null,null,null,null,null,null,null,null,null,null,null,null,null,null,null,null,null,null,null,null,null,null,null,null,null,null,null,null,null,null,null,null,null,null,null,null,null,null,null,null,null,null,null,null,null,null,null,null,null,null,null,null,null,null,null,null,null,null,null,null,null,null,null,null,null,null,null,null,null,null,null,null,null,null,null,null,null,null,null,null,null,null,null,null,null,null,null,null,null,null,null,null,null,null,null,null,null,null,null,null,null,null,null,null,null,null,null,null,null,null,null,null,null,null,null,null,null,null,null,null,null,null,null,null,null,null,null,null,null,null,null,null,null,null,null,null,null,null,null,null,null,null,null,null,null,null,null,null,null,null,null,null,null,null,null,null,null,null,null,null,null,null,null,null,null,null,null,null,null,null,null,null,null,null,null,null,null,null,null,null,null,null,null,null,null,null,null,null,null,null,null,null,null,null,null,null,null,null,"زخرفة","ملابس","تريكو","تبريد","مزدوج"]
[]
[null,"ادارة "]
[null,null,null,null,null,null,null,null,null,null,"2023 / 2022"]
[null,"مدرسة "]
[]
[null,"الصف الثانى"]
[]
[null,"م","الاسم","النوع","القيد","الديانه","الرقم القومى","تاريخ الميلاد","السن فى","2023-10-01",null,"ولى الامر","القسم","العنوان","الفصل2","نشاط1","نشاط2","الجنسيه","تليفون ولى الامر",null,"المهنه",null,null,null,null,null,null,null,null,null,null,null,null,null,null,null,null,null,null,null,null,null,null,null,null,null,null,null,null,null,null,null,null,null,null,null,null,null,null,null,null,null,null,null,null,null,null,null,null,null,null,null,null,null,null,null,null,null,null,null,null,null,null,null,null,null,null,null,null,null,null,null,null,null,null,null,null,null,null,null,null,null,null,null,null,null,null,null,null,null,null,null,null,null,null,null,null,null,null,null,null,null,null,null,null,null,null,null,null,null,null,null,null,null,null,null,null,null,null,null,null,null,null,null,null,null,null,null,null,null,null,null,null,null,null,null,null,null,null,null,null,null,null,null,null,null,null,null,null,null,null,null,null,null,null,null,null,null,null,null,null,null,null,null,null,null,null,null,null,null,null,null,null,null,null,null,null,null,null,null,null,null,null,null,null,null,null,null,null,null,null,null,null,null,null,null,null,null,null,null,null,null,null,null,null,null,null,null,null,null,null,null,null,null,null,null,null,null,null,null,null,null,null,null,null,null,null,null,null,null,null,null,null,null,"التليفون","القسم"]
[null,null,null,null,null,null,null,null,"يوم","شهر","سنه"]
[null,{"$f":"IF(C11=\"\",\"\",ROW()-11+$L$1)","v":0},"ابراهيم شكرى الشاملى عبدالعال يوسف",{"$f":"Kh_Date_Sex_Province(G11,2)","v":"ÐßÑ"},null,null,30402221500151,{"$f":"Kh_Date_Sex_Province($G11,1)","v":"2004-02-22"},{"$f":"IF(H11=\"\",\"\",IF(H11>1,DATEDIF(H11,$J$9,\"MD\"),\"\"))","v":9},{"$f":"IF(H11=\"\",\"\",IF(H11>1,DATEDIF(H11,$J$9,\"ym\"),\"\"))","v":7},{"$f":"IF(H11=\"\",\"\",IF(H11>1,DATEDIF(H11,$J$9,\"y\"),\"\"))","v":19},{"$f":"Kh_Father_Name(C11)","v":"شكرى الشاملى عبدالعال يوسف"},null,null,"اول",null,null,"مصرى",null,null,null,null,null,null,null,null,null,null,null,null,null,null,null,null,null,null,null,null,null,null,null,null,null,null,null,null,null,null,null,null,null,null,null,null,null,null,null,null,null,null,null,null,null,null,null,null,null,null,null,null,null,null,null,null,null,null,null,null,null,null,null,null,null,null,null,null,null,null,null,null,null,null,null,null,null,null,null,null,null,null,null,null,null,null,null,null,null,null,null,null,null,null,null,null,null,null,null,null,null,null,null,null,null,null,null,null,null,null,null,null,null,null,null,null,null,null,null,null,null,null,null,null,null,null,null,null,null,null,null,null,null,null,null,null,null,null,null,null,null,null,null,null,null,null,null,null,null,null,null,null,null,null,null,null,null,null,null,null,null,null,null,null,null,null,null,null,null,null,null,null,null,null,null,null,null,null,null,null,null,null,null,null,null,null,null,null,null,null,null,null,null,null,null,null,null,null,null,null,null,null,null,null,null,null,null,null,null,null,null,null,null,null,null,null,null,null,null,null,null,null,null,null,null,null,null,null,null,null,null,null,null,null,null,null,null,"الكترونيات"]
[null,{"$f":"IF(C12=\"\",\"\",ROW()-11+$L$1)","v":1},"ابراهيم صلاح عبد الحميد علي","ÐßÑ",null,null,30311011501338,"2003-11-01",0,11,19,"صلاح عبد الحميد علي",null,null,"اول",null,null,"مصرى",null,null,null,null,null,null,null,null,null,null,null,null,null,null,null,null,null,null,null,null,null,null,null,null,null,null,null,null,null,null,null,null,null,null,null,null,null,null,null,null,null,null,null,null,null,null,null,null,null,null,null,null,null,null,null,null,null,null,null,null,null,null,null,null,null,null,null,null,null,null,null,null,null,null,null,null,null,null,null,null,null,null,null,null,null,null,null,null,null,null,null,null,null,null,null,null,null,null,null,null,null,null,null,null,null,null,null,null,null,null,null,null,null,null,null,null,null,null,null,null,null,null,null,null,null,null,null,null,null,null,null,null,null,null,null,null,null,null,null,null,null,null,null,null,null,null,null,null,null,null,null,null,null,null,null,null,null,null,null,null,null,null,null,null,null,null,null,null,null,null,null,null,null,null,null,null,null,null,null,null,null,null,null,null,null,null,null,null,null,null,null,null,null,null,null,null,null,null,null,null,null,null,null,null,null,null,null,null,null,null,null,null,null,null,null,null,null,null,null,null,null,null,null,null,null,null,null,null,null,null,null,null,null,null,null,null,null,"شعبة"]
[null,2,"ابراهيم مجدي ابراهيم عثمان","ÐßÑ",null,null,30309268800358,"2003-09-26",5,0,20,"مجدي ابراهيم عثمان",null,null,"اول",null,null,"مصرى",null,null,null,null,null,null,null,null,null,null,null,null,null,null,null,null,null,null,null,null,null,null,null,null,null,null,null,null,null,null,null,null,null,null,null,null,null,null,null,null,null,null,null,null,null,null,null,null,null,null,null,null,null,null,null,null,null,null,null,null,null,null,null,null,null,null,null,null,null,null,null,null,null,null,null,null,null,null,null,null,null,null,null,null,null,null,null,null,null,null,null,null,null,null,null,null,null,null,null,null,null,null,null,null,null,null,null,null,null,null,null,null,null,null,null,null,null,null,null,null,null,null,null,null,null,null,null,null,null,null,null,null,null,null,null,null,null,null,null,null,null,null,null,null,null,null,null,null,null,null,null,null,null,null,null,null,null,null,null,null,null,null,null,null,null,null,null,null,null,null,null,null,null,null,null,null,null,null,null,null,null,null,null,null,null,null,null,null,null,null,null,null,null,null,null,null,null,null,null,null,null,null,null,null,null,null,null,null,null,null,null,null,null,null,null,null,null,null,null,null,null,null,null,null,null,null,null,null,null,null,null,null,null,null,null,null,null,"ملابس"]
[null,3,"ابراهيم هاشم فتحى محمود","ÐßÑ",null,null,30402171500317,"2004-02-17",14,7,19,{"$f":"Kh_Father_Name(C14)","v":"هاشم فتحى محمود"},null,null,"اول",null,null,"مصرى",null,null,null,null,null,null,null,null,null,null,null,null,null,null,null,null,null,null,null,null,null,null,null,null,null,null,null,null,null,null,null,null,null,null,null,null,null,null,null,null,null,null,null,null,null,null,null,null,null,null,null,null,null,null,null,null,null,null,null,null,null,null,null,null,null,null,null,null,null,null,null,null,null,null,null,null,null,null,null,null,null,null,null,null,null,null,null,null,null,null,null,null,null,null,null,null,null,null,null,null,null,null,null,null,null,null,null,null,null,null,null,null,null,null,null,null,null,null,null,null,null,null,null,null,null,null,null,null,null,null,null,null,null,null,null,null,null,null,null,null,null,null,null,null,null,null,null,null,null,null,null,null,null,null,null,null,null,null,null,null,null,null,null,null,null,null,null,null,null,null,null,null,null,null,null,null,null,null,null,null,null,null,null,null,null,null,null,null,null,null,null,null,null,null,null,null,null,null,null,null,null,null,null,null,null,null,null,null,null,null,null,null,null,null,null,null,null,null,null,null,null,null,null,null,null,null,null,null,null,null,null,null,null,null,null,null,null,"تريكو"]
[null,4,"ابراهيم هيثم ابراهيم محمد البدري","ÐßÑ",null,null,30404011501778,"2004-04-01",0,6,19,"هيثم ابراهيم محمد البدري",null,null,"اول",null,null,"مصرى",null,null,null,null,null,null,null,null,null,null,null,null,null,null,null,null,null,null,null,null,null,null,null,null,null,null,null,null,null,null,null,null,null,null,null,null,null,null,null,null,null,null,null,null,null,null,null,null,null,null,null,null,null,null,null,null,null,null,null,null,null,null,null,null,null,null,null,null,null,null,null,null,null,null,null,null,null,null,null,null,null,null,null,null,null,null,null,null,null,null,null,null,null,null,null,null,null,null,null,null,null,null,null,null,null,null,null,null,null,null,null,null,null,null,null,null,null,null,null,null,null,null,null,null,null,null,null,null,null,null,null,null,null,null,null,null,null,null,null,null,null,null,null,null,null,null,null,null,null,null,null,null,null,null,null,null,null,null,null,null,null,null,null,null,null,null,null,null,null,null,null,null,null,null,null,null,null,null,null,null,null,null,null,null,null,null,null,null,null,null,null,null,null,null,null,null,null,null,null,null,null,null,null,null,null,null,null,null,null,null,null,null,null,null,null,null,null,null,null,null,null,null,null,null,null,null,null,null,null,null,null,null,null,null,null,null,null,"زخرفة"]
[null,5,"احمد ادهم السيد الشرقاوي","ÐßÑ",null,null,30212151502379,"2002-12-15",16,9,20,"ادهم السيد الشرقاوي",null,null,"اول",null,null,"مصرى",null,null,null,null,null,null,null,null,null,null,null,null,null,null,null,null,null,null,null,null,null,null,null,null,null,null,null,null,null,null,null,null,null,null,null,null,null,null,null,null,null,null,null,null,null,null,null,null,null,null,null,null,null,null,null,null,null,null,null,null,null,null,null,null,null,null,null,null,null,null,null,null,null,null,null,null,null,null,null,null,null,null,null,null,null,null,null,null,null,null,null,null,null,null,null,null,null,null,null,null,null,null,null,null,null,null,null,null,null,null,null,null,null,null,null,null,null,null,null,null,null,null,null,null,null,null,null,null,null,null,null,null,null,null,null,null,null,null,null,null,null,null,null,null,null,null,null,null,null,null,null,null,null,null,null,null,null,null,null,null,null,null,null,null,null,null,null,null,null,null,null,null,null,null,null,null,null,null,null,null,null,null,null,null,null,null,null,null,null,null,null,null,null,null,null,null,null,null,null,null,null,null,null,null,null,null,null,null,null,null,null,null,null,null,null,null,null,null,null,null,null,null,null,null,null,null,null,null,null,null,null,null,null,null,null,null,null,"تبريد"]
[null,6,"احمد اسامه محمد فتحي جاد الله","ÐßÑ",null,null,30308111500176,"2003-08-11",20,1,20,"اسامه محمد فتحي جاد الله",null,null,"اول",null,null,"مصرى",null,null,null,null,null,null,null,null,null,null,null,null,null,null,null,null,null,null,null,null,null,null,null,null,null,null,null,null,null,null,null,null,null,null,null,null,null,null,null,null,null,null,null,null,null,null,null,null,null,null,null,null,null,null,null,null,null,null,null,null,null,null,null,null,null,null,null,null,null,null,null,null,null,null,null,null,null,null,null,null,null,null,null,null,null,null,null,null,null,null,null,null,null,null,null,null,null,null,null,null,null,null,null,null,null,null,null,null,null,null,null,null,null,null,null,null,null,null,null,null,null,null,null,null,null,null,null,null,null,null,null,null,null,null,null,null,null,null,null,null,null,null,null,null,null,null,null,null,null,null,null,null,null,null,null,null,null,null,null,null,null,null,null,null,null,null,null,null,null,null,null,null,null,null,null,null,null,null,null,null,null,null,null,null,null,null,null,null,null,null,null,null,null,null,null,null,null,null,null,null,null,null,null,null,null,null,null,null,null,null,null,null,null,null,null,null,null,null,null,null,null,null,null,null,null,null,null,null,null,null,null,null,null,null,null,null,null,"مزدوج"]
[null,7,"احمد الامير حسن سلامه","ÐßÑ",null,null,30307191500493,"2003-07-19",12,2,20,"الامير حسن سلامه",null,null,"اول",null,null,"مصرى",null,null,null,null,null,null,null,null,null,null,null,null,null,null,null,null,null,null,null,null,null,null,null,null,null,null,null,null,null,null,null,null,null,null,null,null,null,null,null,null,null,null,null,null,null,null,null,null,null,null,null,null,null,null,null,null,null,null,null,null,null,null,null,null,null,null,null,null,null,null,null,null,null,null,null,null,null,null,null,null,null,null,null,null,null,null,null,null,null,null,null,null,null,null,null,null,null,null,null,null,null,null,null,null,null,null,null,null,null,null,null,null,null,null,null,null,null,null,null,null,null,null,null,null,null,null,null,null,null,null,null,null,null,null,null,null,null,null,null,null,null,null,null,null,null,null,null,null,null,null,null,null,null,null,null,null,null,null,null,null,null,null,null,null,null,null,null,null,null,null,null,null,null,null,null,null,null,null,null,null,null,null,null,null,null,null,null,null,null,null,null,null,null,null,null,null,null,null,null,null,null,null,null,null,null,null,null,null,null,null,null,null,null,null,null,null,null,null,null,null,null,null,null,null,null,null,null,null,null,null,null,null,null,null,null,null,null,"الكترونيات"]
[null,8,"احمد السعيد حسين محمد","ÐßÑ",null,null,30309201502859,"2003-09-20",11,0,20,"السعيد حسين محمد",null,null,"اول",null,null,"مصرى",null,null,null,null,null,null,null,null,null,null,null,null,null,null,null,null,null,null,null,null,null,null,null,null,null,null,null,null,null,null,null,null,null,null,null,null,null,null,null,null,null,null,null,null,null,null,null,null,null,null,null,null,null,null,null,null,null,null,null,null,null,null,null,null,null,null,null,null,null,null,null,null,null,null,null,null,null,null,null,null,null,null,null,null,null,null,null,null,null,null,null,null,null,null,null,null,null,null,null,null,null,null,null,null,null,null,null,null,null,null,null,null,null,null,null,null,null,null,null,null,null,null,null,null,null,null,null,null,null,null,null,null,null,null,null,null,null,null,null,null,null,null,null,null,null,null,null,null,null,null,null,null,null,null,null,null,null,null,null,null,null,null,null,null,null,null,null,null,null,null,null,null,null,null,null,null,null,null,null,null,null,null,null,null,null,null,null,null,null,null,null,null,null,null,null,null,null,null,null,null,null,null,null,null,null,null,null,null,null,null,null,null,null,null,null,null,null,null,null,null,null,null,null,null,null,null,null,null,null,null,null,null,null,null,null,null,null,"شعبة"]
[null,9,"احمد السيد احمد متولي رجب","ÐßÑ",null,null,30302181500191,"2003-02-18",13,7,20,"السيد احمد متولي رجب",null,null,"اول",null,null,"مصرى",null,null,null,null,null,null,null,null,null,null,null,null,null,null,null,null,null,null,null,null,null,null,null,null,null,null,null,null,null,null,null,null,null,null,null,null,null,null,null,null,null,null,null,null,null,null,null,null,null,null,null,null,null,null,null,null,null,null,null,null,null,null,null,null,null,null,null,null,null,null,null,null,null,null,null,null,null,null,null,null,null,null,null,null,null,null,null,null,null,null,null,null,null,null,null,null,null,null,null,null,null,null,null,null,null,null,null,null,null,null,null,null,null,null,null,null,null,null,null,null,null,null,null,null,null,null,null,null,null,null,null,null,null,null,null,null,null,null,null,null,null,null,null,null,null,null,null,null,null,null,null,null,null,null,null,null,null,null,null,null,null,null,null,null,null,null,null,null,null,null,null,null,null,null,null,null,null,null,null,null,null,null,null,null,null,null,null,null,null,null,null,null,null,null,null,null,null,null,null,null,null,null,null,null,null,null,null,null,null,null,null,null,null,null,null,null,null,null,null,null,null,null,null,null,null,null,null,null,null,null,null,null,null,null,null,null,null,"ملابس"]
[null,10,"احمد ايمن رمضان عبدالسلام الغرباوى","ÐßÑ",null,null,30306271500439,"2003-06-27",4,3,20,"ايمن رمضان عبدالسلام الغرباوى",null,null,"اول",null,null,"مصرى",null,null,null,null,null,null,null,null,null,null,null,null,null,null,null,null,null,null,null,null,null,null,null,null,null,null,null,null,null,null,null,null,null,null,null,null,null,null,null,null,null,null,null,null,null,null,null,null,null,null,null,null,null,null,null,null,null,null,null,null,null,null,null,null,null,null,null,null,null,null,null,null,null,null,null,null,null,null,null,null,null,null,null,null,null,null,null,null,null,null,null,null,null,null,null,null,null,null,null,null,null,null,null,null,null,null,null,null,null,null,null,null,null,null,null,null,null,null,null,null,null,null,null,null,null,null,null,null,null,null,null,null,null,null,null,null,null,null,null,null,null,null,null,null,null,null,null,null,null,null,null,null,null,null,null,null,null,null,null,null,null,null,null,null,null,null,null,null,null,null,null,null,null,null,null,null,null,null,null,null,null,null,null,null,null,null,null,null,null,null,null,null,null,null,null,null,null,null,null,null,null,null,null,null,null,null,null,null,null,null,null,null,null,null,null,null,null,null,null,null,null,null,null,null,null,null,null,null,null,null,null,null,null,null,null,null,null,"تريكو"]
[null,11,"احمد ايمن عبدالستار الموافي","ÐßÑ",null,null,30304081500553,"2003-04-08",23,5,20,"ايمن عبدالستار الموافي",null,null,"اول",null,null,"مصرى",null,null,null,null,null,null,null,null,null,null,null,null,null,null,null,null,null,null,null,null,null,null,null,null,null,null,null,null,null,null,null,null,null,null,null,null,null,null,null,null,null,null,null,null,null,null,null,null,null,null,null,null,null,null,null,null,null,null,null,null,null,null,null,null,null,null,null,null,null,null,null,null,null,null,null,null,null,null,null,null,null,null,null,null,null,null,null,null,null,null,null,null,null,null,null,null,null,null,null,null,null,null,null,null,null,null,null,null,null,null,null,null,null,null,null,null,null,null,null,null,null,null,null,null,null,null,null,null,null,null,null,null,null,null,null,null,null,null,null,null,null,null,null,null,null,null,null,null,null,null,null,null,null,null,null,null,null,null,null,null,null,null,null,null,null,null,null,null,null,null,null,null,null,null,null,null,null,null,null,null,null,null,null,null,null,null,null,null,null,null,null,null,null,null,null,null,null,null,null,null,null,null,null,null,null,null,null,null,null,null,null,null,null,null,null,null,null,null,null,null,null,null,null,null,null,null,null,null,null,null,null,null,null,null,null,null,null,"زخرفة"]
[null,12,"احمد ايمن عبدالله عبدالحميد","ÐßÑ",null,null,30309201502875,"2003-09-20",11,0,20,"ايمن عبدالله عبدالحميد",null,null,"اول",null,null,"مصرى",null,null,null,null,null,null,null,null,null,null,null,null,null,null,null,null,null,null,null,null,null,null,null,null,null,null,null,null,null,null,null,null,null,null,null,null,null,null,null,null,null,null,null,null,null,null,null,null,null,null,null,null,null,null,null,null,null,null,null,null,null,null,null,null,null,null,null,null,null,null,null,null,null,null,null,null,null,null,null,null,null,null,null,null,null,null,null,null,null,null,null,null,null,null,null,null,null,null,null,null,null,null,null,null,null,null,null,null,null,null,null,null,null,null,null,null,null,null,null,null,null,null,null,null,null,null,null,null,null,null,null,null,null,null,null,null,null,null,null,null,null,null,null,null,null,null,null,null,null,null,null,null,null,null,null,null,null,null,null,null,null,null,null,null,null,null,null,null,null,null,null,null,null,null,null,null,null,null,null,null,null,null,null,null,null,null,null,null,null,null,null,null,null,null,null,null,null,null,null,null,null,null,null,null,null,null,null,null,null,null,null,null,null,null,null,null,null,null,null,null,null,null,null,null,null,null,null,null,null,null,null,null,null,null,null,null,null,"تبريد"]
[null,13,"احمد بهاءالدين مرسى غازى","ÐßÑ",null,null,30307201501752,"2003-07-20",11,2,20,"بهاءالدين مرسى غازى",null,null,"اول",null,null,"مصرى",null,null,null,null,null,null,null,null,null,null,null,null,null,null,null,null,null,null,null,null,null,null,null,null,null,null,null,null,null,null,null,null,null,null,null,null,null,null,null,null,null,null,null,null,null,null,null,null,null,null,null,null,null,null,null,null,null,null,null,null,null,null,null,null,null,null,null,null,null,null,null,null,null,null,null,null,null,null,null,null,null,null,null,null,null,null,null,null,null,null,null,null,null,null,null,null,null,null,null,null,null,null,null,null,null,null,null,null,null,null,null,null,null,null,null,null,null,null,null,null,null,null,null,null,null,null,null,null,null,null,null,null,null,null,null,null,null,null,null,null,null,null,null,null,null,null,null,null,null,null,null,null,null,null,null,null,null,null,null,null,null,null,null,null,null,null,null,null,null,null,null,null,null,null,null,null,null,null,null,null,null,null,null,null,null,null,null,null,null,null,null,null,null,null,null,null,null,null,null,null,null,null,null,null,null,null,null,null,null,null,null,null,null,null,null,null,null,null,null,null,null,null,null,null,null,null,null,null,null,null,null,null,null,null,null,null,null,"مزدوج"]
[null,14,"احمد ثروت مصطفى رزق","ÐßÑ",null,null,30202281500313,"2002-02-28",3,7,21,"ثروت مصطفى رزق",null,null,"اول",null,null,"مصرى",null,null,null,null,null,null,null,null,null,null,null,null,null,null,null,null,null,null,null,null,null,null,null,null,null,null,null,null,null,null,null,null,null,null,null,null,null,null,null,null,null,null,null,null,null,null,null,null,null,null,null,null,null,null,null,null,null,null,null,null,null,null,null,null,null,null,null,null,null,null,null,null,null,null,null,null,null,null,null,null,null,null,null,null,null,null,null,null,null,null,null,null,null,null,null,null,null,null,null,null,null,null,null,null,null,null,null,null,null,null,null,null,null,null,null,null,null,null,null,null,null,null,null,null,null,null,null,null,null,null,null,null,null,null,null,null,null,null,null,null,null,null,null,null,null,null,null,null,null,null,null,null,null,null,null,null,null,null,null,null,null,null,null,null,null,null,null,null,null,null,null,null,null,null,null,null,null,null,null,null,null,null,null,null,null,null,null,null,null,null,null,null,null,null,null,null,null,null,null,null,null,null,null,null,null,null,null,null,null,null,null,null,null,null,null,null,null,null,null,null,null,null,null,null,null,null,null,null,null,null,null,null,null,null,null,null,null,"الكترونيات"]
[null,15,"احمد جمال عبدالمطلب عمر","ÐßÑ",null,null,30309281502331,"2003-09-28",3,0,20,"جمال عبدالمطلب عمر",null,null,"اول",null,null,"مصرى",null,null,null,null,null,null,null,null,null,null,null,null,null,null,null,null,null,null,null,null,null,null,null,null,null,null,null,null,null,null,null,null,null,null,null,null,null,null,null,null,null,null,null,null,null,null,null,null,null,null,null,null,null,null,null,null,null,null,null,null,null,null,null,null,null,null,null,null,null,null,null,null,null,null,null,null,null,null,null,null,null,null,null,null,null,null,null,null,null,null,null,null,null,null,null,null,null,null,null,null,null,null,null,null,null,null,null,null,null,null,null,null,null,null,null,null,null,null,null,null,null,null,null,null,null,null,null,null,null,null,null,null,null,null,null,null,null,null,null,null,null,null,null,null,null,null,null,null,null,null,null,null,null,null,null,null,null,null,null,null,null,null,null,null,null,null,null,null,null,null,null,null,null,null,null,null,null,null,null,null,null,null,null,null,null,null,null,null,null,null,null,null,null,null,null,null,null,null,null,null,null,null,null,null,null,null,null,null,null,null,null,null,null,null,null,null,null,null,null,null,null,null,null,null,null,null,null,null,null,null,null,null,null,null,null,null,null,"شعبة"]
[null,16,"احمد حاتم رفعت غازي يوسف","ÐßÑ",null,null,30212161500773,"2002-12-16",15,9,20,"حاتم رفعت غازي يوسف",null,null,"اول",null,null,"مصرى",null,null,null,null,null,null,null,null,null,null,null,null,null,null,null,null,null,null,null,null,null,null,null,null,null,null,null,null,null,null,null,null,null,null,null,null,null,null,null,null,null,null,null,null,null,null,null,null,null,null,null,null,null,null,null,null,null,null,null,null,null,null,null,null,null,null,null,null,null,null,null,null,null,null,null,null,null,null,null,null,null,null,null,null,null,null,null,null,null,null,null,null,null,null,null,null,null,null,null,null,null,null,null,null,null,null,null,null,null,null,null,null,null,null,null,null,null,null,null,null,null,null,null,null,null,null,null,null,null,null,null,null,null,null,null,null,null,null,null,null,null,null,null,null,null,null,null,null,null,null,null,null,null,null,null,null,null,null,null,null,null,null,null,null,null,null,null,null,null,null,null,null,null,null,null,null,null,null,null,null,null,null,null,null,null,null,null,null,null,null,null,null,null,null,null,null,null,null,null,null,null,null,null,null,null,null,null,null,null,null,null,null,null,null,null,null,null,null,null,null,null,null,null,null,null,null,null,null,null,null,null,null,null,null,null,null,null,"ملابس"]
[null,17,"احمد حسن محمد السيد","ÐßÑ",null,null,30309131500179,"2003-09-13",18,0,20,"حسن محمد السيد",null,null,"اول",null,null,"مصرى",null,null,null,null,null,null,null,null,null,null,null,null,null,null,null,null,null,null,null,null,null,null,null,null,null,null,null,null,null,null,null,null,null,null,null,null,null,null,null,null,null,null,null,null,null,null,null,null,null,null,null,null,null,null,null,null,null,null,null,null,null,null,null,null,null,null,null,null,null,null,null,null,null,null,null,null,null,null,null,null,null,null,null,null,null,null,null,null,null,null,null,null,null,null,null,null,null,null,null,null,null,null,null,null,null,null,null,null,null,null,null,null,null,null,null,null,null,null,null,null,null,null,null,null,null,null,null,null,null,null,null,null,null,null,null,null,null,null,null,null,null,null,null,null,null,null,null,null,null,null,null,null,null,null,null,null,null,null,null,null,null,null,null,null,null,null,null,null,null,null,null,null,null,null,null,null,null,null,null,null,null,null,null,null,null,null,null,null,null,null,null,null,null,null,null,null,null,null,null,null,null,null,null,null,null,null,null,null,null,null,null,null,null,null,null,null,null,null,null,null,null,null,null,null,null,null,null,null,null,null,null,null,null,null,null,null,null,"تريكو"]
[null,18,"احمد رجب سعد عبدالكريم","ÐßÑ",null,null,30305288800871,"2003-05-28",3,4,20,"رجب سعد عبدالكريم",null,null,"اول",null,null,"مصرى",null,null,null,null,null,null,null,null,null,null,null,null,null,null,null,null,null,null,null,null,null,null,null,null,null,null,null,null,null,null,null,null,null,null,null,null,null,null,null,null,null,null,null,null,null,null,null,null,null,null,null,null,null,null,null,null,null,null,null,null,null,null,null,null,null,null,null,null,null,null,null,null,null,null,null,null,null,null,null,null,null,null,null,null,null,null,null,null,null,null,null,null,null,null,null,null,null,null,null,null,null,null,null,null,null,null,null,null,null,null,null,null,null,null,null,null,null,null,null,null,null,null,null,null,null,null,null,null,null,null,null,null,null,null,null,null,null,null,null,null,null,null,null,null,null,null,null,null,null,null,null,null,null,null,null,null,null,null,null,null,null,null,null,null,null,null,null,null,null,null,null,null,null,null,null,null,null,null,null,null,null,null,null,null,null,null,null,null,null,null,null,null,null,null,null,null,null,null,null,null,null,null,null,null,null,null,null,null,null,null,null,null,null,null,null,null,null,null,null,null,null,null,null,null,null,null,null,null,null,null,null,null,null,null,null,null,null,"زخرفة"]
[null,19,"احمد رشاد عوض عبداللطيف غازي","ÐßÑ",null,null,30301011500034,"2003-01-01",0,9,20,"رشاد عوض عبداللطيف غازي",null,null,"اول",null,null,"مصرى",null,null,null,null,null,null,null,null,null,null,null,null,null,null,null,null,null,null,null,null,null,null,null,null,null,null,null,null,null,null,null,null,null,null,null,null,null,null,null,null,null,null,null,null,null,null,null,null,null,null,null,null,null,null,null,null,null,null,null,null,null,null,null,null,null,null,null,null,null,null,null,null,null,null,null,null,null,null,null,null,null,null,null,null,null,null,null,null,null,null,null,null,null,null,null,null,null,null,null,null,null,null,null,null,null,null,null,null,null,null,null,null,null,null,null,null,null,null,null,null,null,null,null,null,null,null,null,null,null,null,null,null,null,null,null,null,null,null,null,null,null,null,null,null,null,null,null,null,null,null,null,null,null,null,null,null,null,null,null,null,null,null,null,null,null,null,null,null,null,null,null,null,null,null,null,null,null,null,null,null,null,null,null,null,null,null,null,null,null,null,null,null,null,null,null,null,null,null,null,null,null,null,null,null,null,null,null,null,null,null,null,null,null,null,null,null,null,null,null,null,null,null,null,null,null,null,null,null,null,null,null,null,null,null,null,null,null,"تبريد"]
[null,20,"احمد رفعت محمد يوسف","ÐßÑ",null,null,30402071501375,"2004-02-07",24,7,19,"رفعت محمد يوسف",null,null,"اول",null,null,"مصرى",null,null,null,null,null,null,null,null,null,null,null,null,null,null,null,null,null,null,null,null,null,null,null,null,null,null,null,null,null,null,null,null,null,null,null,null,null,null,null,null,null,null,null,null,null,null,null,null,null,null,null,null,null,null,null,null,null,null,null,null,null,null,null,null,null,null,null,null,null,null,null,null,null,null,null,null,null,null,null,null,null,null,null,null,null,null,null,null,null,null,null,null,null,null,null,null,null,null,null,null,null,null,null,null,null,null,null,null,null,null,null,null,null,null,null,null,null,null,null,null,null,null,null,null,null,null,null,null,null,null,null,null,null,null,null,null,null,null,null,null,null,null,null,null,null,null,null,null,null,null,null,null,null,null,null,null,null,null,null,null,null,null,null,null,null,null,null,null,null,null,null,null,null,null,null,null,null,null,null,null,null,null,null,null,null,null,null,null,null,null,null,null,null,null,null,null,null,null,null,null,null,null,null,null,null,null,null,null,null,null,null,null,null,null,null,null,null,null,null,null,null,null,null,null,null,null,null,null,null,null,null,null,null,null,null,null,null,"مزدوج"]
[null,21,"احمد رفيق محمد السيد","ÐßÑ",null,null,30304011507992,"2003-04-01",0,6,20,"رفيق محمد السيد",null,null,"اول",null,null,"مصرى",null,null,null,null,null,null,null,null,null,null,null,null,null,null,null,null,null,null,null,null,null,null,null,null,null,null,null,null,null,null,null,null,null,null,null,null,null,null,null,null,null,null,null,null,null,null,null,null,null,null,null,null,null,null,null,null,null,null,null,null,null,null,null,null,null,null,null,null,null,null,null,null,null,null,null,null,null,null,null,null,null,null,null,null,null,null,null,null,null,null,null,null,null,null,null,null,null,null,null,null,null,null,null,null,null,null,null,null,null,null,null,null,null,null,null,null,null,null,null,null,null,null,null,null,null,null,null,null,null,null,null,null,null,null,null,null,null,null,null,null,null,null,null,null,null,null,null,null,null,null,null,null,null,null,null,null,null,null,null,null,null,null,null,null,null,null,null,null,null,null,null,null,null,null,null,null,null,null,null,null,null,null,null,null,null,null,null,null,null,null,null,null,null,null,null,null,null,null,null,null,null,null,null,null,null,null,null,null,null,null,null,null,null,null,null,null,null,null,null,null,null,null,null,null,null,null,null,null,null,null,null,null,null,null,null,null,null,"الكترونيات"]
[null,22,"احمد سعيد عبد الفتاح محمدفرج","ÐßÑ",null,null,30309281500258,"2003-09-28",3,0,20,"سعيد عبد الفتاح محمدفرج",null,null,"اول",null,null,"مصرى",null,null,null,null,null,null,null,null,null,null,null,null,null,null,null,null,null,null,null,null,null,null,null,null,null,null,null,null,null,null,null,null,null,null,null,null,null,null,null,null,null,null,null,null,null,null,null,null,null,null,null,null,null,null,null,null,null,null,null,null,null,null,null,null,null,null,null,null,null,null,null,null,null,null,null,null,null,null,null,null,null,null,null,null,null,null,null,null,null,null,null,null,null,null,null,null,null,null,null,null,null,null,null,null,null,null,null,null,null,null,null,null,null,null,null,null,null,null,null,null,null,null,null,null,null,null,null,null,null,null,null,null,null,null,null,null,null,null,null,null,null,null,null,null,null,null,null,null,null,null,null,null,null,null,null,null,null,null,null,null,null,null,null,null,null,null,null,null,null,null,null,null,null,null,null,null,null,null,null,null,null,null,null,null,null,null,null,null,null,null,null,null,null,null,null,null,null,null,null,null,null,null,null,null,null,null,null,null,null,null,null,null,null,null,null,null,null,null,null,null,null,null,null,null,null,null,null,null,null,null,null,null,null,null,null,null,null,"شعبة"]
[null,23,"احمد سمير احمد السواح","ÐßÑ",null,null,30304151501153,"2003-04-15",16,5,20,"سمير احمد السواح",null,null,"اول",null,null,"مصرى",null,null,null,null,null,null,null,null,null,null,null,null,null,null,null,null,null,null,null,null,null,null,null,null,null,null,null,null,null,null,null,null,null,null,null,null,null,null,null,null,null,null,null,null,null,null,null,null,null,null,null,null,null,null,null,null,null,null,null,null,null,null,null,null,null,null,null,null,null,null,null,null,null,null,null,null,null,null,null,null,null,null,null,null,null,null,null,null,null,null,null,null,null,null,null,null,null,null,null,null,null,null,null,null,null,null,null,null,null,null,null,null,null,null,null,null,null,null,null,null,null,null,null,null,null,null,null,null,null,null,null,null,null,null,null,null,null,null,null,null,null,null,null,null,null,null,null,null,null,null,null,null,null,null,null,null,null,null,null,null,null,null,null,null,null,null,null,null,null,null,null,null,null,null,null,null,null,null,null,null,null,null,null,null,null,null,null,null,null,null,null,null,null,null,null,null,null,null,null,null,null,null,null,null,null,null,null,null,null,null,null,null,null,null,null,null,null,null,null,null,null,null,null,null,null,null,null,null,null,null,null,null,null,null,null,null,null,"ملابس"]
[null,24,"احمد سمير رجب فرج عبداللطيف البنا","ÐßÑ",null,null,30312131500536,"2003-12-13",18,9,19,"سمير رجب فرج عبداللطيف البنا",null,null,"اول",null,null,"مصرى",null,null,null,null,null,null,null,null,null,null,null,null,null,null,null,null,null,null,null,null,null,null,null,null,null,null,null,null,null,null,null,null,null,null,null,null,null,null,null,null,null,null,null,null,null,null,null,null,null,null,null,null,null,null,null,null,null,null,null,null,null,null,null,null,null,null,null,null,null,null,null,null,null,null,null,null,null,null,null,null,null,null,null,null,null,null,null,null,null,null,null,null,null,null,null,null,null,null,null,null,null,null,null,null,null,null,null,null,null,null,null,null,null,null,null,null,null,null,null,null,null,null,null,null,null,null,null,null,null,null,null,null,null,null,null,null,null,null,null,null,null,null,null,null,null,null,null,null,null,null,null,null,null,null,null,null,null,null,null,null,null,null,null,null,null,null,null,null,null,null,null,null,null,null,null,null,null,null,null,null,null,null,null,null,null,null,null,null,null,null,null,null,null,null,null,null,null,null,null,null,null,null,null,null,null,null,null,null,null,null,null,null,null,null,null,null,null,null,null,null,null,null,null,null,null,null,null,null,null,null,null,null,null,null,null,null,null,"تريكو"]
[null,25,"احمد سمير عيسي الشاعر","ÐßÑ",null,null,30308231500234,"2003-08-23",8,1,20,"سمير عيسي الشاعر",null,null,"اول",null,null,"مصرى",null,null,null,null,null,null,null,null,null,null,null,null,null,null,null,null,null,null,null,null,null,null,null,null,null,null,null,null,null,null,null,null,null,null,null,null,null,null,null,null,null,null,null,null,null,null,null,null,null,null,null,null,null,null,null,null,null,null,null,null,null,null,null,null,null,null,null,null,null,null,null,null,null,null,null,null,null,null,null,null,null,null,null,null,null,null,null,null,null,null,null,null,null,null,null,null,null,null,null,null,null,null,null,null,null,null,null,null,null,null,null,null,null,null,null,null,null,null,null,null,null,null,null,null,null,null,null,null,null,null,null,null,null,null,null,null,null,null,null,null,null,null,null,null,null,null,null,null,null,null,null,null,null,null,null,null,null,null,null,null,null,null,null,null,null,null,null,null,null,null,null,null,null,null,null,null,null,null,null,null,null,null,null,null,null,null,null,null,null,null,null,null,null,null,null,null,null,null,null,null,null,null,null,null,null,null,null,null,null,null,null,null,null,null,null,null,null,null,null,null,null,null,null,null,null,null,null,null,null,null,null,null,null,null,null,null,null,"زخرفة"]
[null,26,"احمد شوقى حمد عبدالله","ÐßÑ",null,null,30307251500978,"2003-07-25",6,2,20,"شوقى حمد عبدالله",null,null,"اول",null,null,"مصرى",null,null,null,null,null,null,null,null,null,null,null,null,null,null,null,null,null,null,null,null,null,null,null,null,null,null,null,null,null,null,null,null,null,null,null,null,null,null,null,null,null,null,null,null,null,null,null,null,null,null,null,null,null,null,null,null,null,null,null,null,null,null,null,null,null,null,null,null,null,null,null,null,null,null,null,null,null,null,null,null,null,null,null,null,null,null,null,null,null,null,null,null,null,null,null,null,null,null,null,null,null,null,null,null,null,null,null,null,null,null,null,null,null,null,null,null,null,null,null,null,null,null,null,null,null,null,null,null,null,null,null,null,null,null,null,null,null,null,null,null,null,null,null,null,null,null,null,null,null,null,null,null,null,null,null,null,null,null,null,null,null,null,null,null,null,null,null,null,null,null,null,null,null,null,null,null,null,null,null,null,null,null,null,null,null,null,null,null,null,null,null,null,null,null,null,null,null,null,null,null,null,null,null,null,null,null,null,null,null,null,null,null,null,null,null,null,null,null,null,null,null,null,null,null,null,null,null,null,null,null,null,null,null,null,null,null,null,"تبريد"]
[null,27,"احمد صبحى حسن احمد شليل","ÐßÑ",null,null,30303151501556,"2003-03-15",16,6,20,"صبحى حسن احمد شليل",null,null,"اول",null,null,"مصرى",null,null,null,null,null,null,null,null,null,null,null,null,null,null,null,null,null,null,null,null,null,null,null,null,null,null,null,null,null,null,null,null,null,null,null,null,null,null,null,null,null,null,null,null,null,null,null,null,null,null,null,null,null,null,null,null,null,null,null,null,null,null,null,null,null,null,null,null,null,null,null,null,null,null,null,null,null,null,null,null,null,null,null,null,null,null,null,null,null,null,null,null,null,null,null,null,null,null,null,null,null,null,null,null,null,null,null,null,null,null,null,null,null,null,null,null,null,null,null,null,null,null,null,null,null,null,null,null,null,null,null,null,null,null,null,null,null,null,null,null,null,null,null,null,null,null,null,null,null,null,null,null,null,null,null,null,null,null,null,null,null,null,null,null,null,null,null,null,null,null,null,null,null,null,null,null,null,null,null,null,null,null,null,null,null,null,null,null,null,null,null,null,null,null,null,null,null,null,null,null,null,null,null,null,null,null,null,null,null,null,null,null,null,null,null,null,null,null,null,null,null,null,null,null,null,null,null,null,null,null,null,null,null,null,null,null,null,"مزدوج"]
[null,28,"احمد صلاح الدين عبد الله عبد الله","ÐßÑ",null,null,30304121500756,"2003-04-12",19,5,20,"صلاح الدين عبد الله عبد الله",null,null,"اول",null,null,"مصرى",null,null,null,null,null,null,null,null,null,null,null,null,null,null,null,null,null,null,null,null,null,null,null,null,null,null,null,null,null,null,null,null,null,null,null,null,null,null,null,null,null,null,null,null,null,null,null,null,null,null,null,null,null,null,null,null,null,null,null,null,null,null,null,null,null,null,null,null,null,null,null,null,null,null,null,null,null,null,null,null,null,null,null,null,null,null,null,null,null,null,null,null,null,null,null,null,null,null,null,null,null,null,null,null,null,null,null,null,null,null,null,null,null,null,null,null,null,null,null,null,null,null,null,null,null,null,null,null,null,null,null,null,null,null,null,null,null,null,null,null,null,null,null,null,null,null,null,null,null,null,null,null,null,null,null,null,null,null,null,null,null,null,null,null,null,null,null,null,null,null,null,null,null,null,null,null,null,null,null,null,null,null,null,null,null,null,null,null,null,null,null,null,null,null,null,null,null,null,null,null,null,null,null,null,null,null,null,null,null,null,null,null,null,null,null,null,null,null,null,null,null,null,null,null,null,null,null,null,null,null,null,null,null,null,null,null,null,"الكترونيات"]
[null,29,"احمد صلاح محمد غازى مرسى","ÐßÑ",null,null,30309011506696,"2003-09-01",0,1,20,"صلاح محمد غازى مرسى",null,null,"اول",null,null,"مصرى",null,null,null,null,null,null,null,null,null,null,null,null,null,null,null,null,null,null,null,null,null,null,null,null,null,null,null,null,null,null,null,null,null,null,null,null,null,null,null,null,null,null,null,null,null,null,null,null,null,null,null,null,null,null,null,null,null,null,null,null,null,null,null,null,null,null,null,null,null,null,null,null,null,null,null,null,null,null,null,null,null,null,null,null,null,null,null,null,null,null,null,null,null,null,null,null,null,null,null,null,null,null,null,null,null,null,null,null,null,null,null,null,null,null,null,null,null,null,null,null,null,null,null,null,null,null,null,null,null,null,null,null,null,null,null,null,null,null,null,null,null,null,null,null,null,null,null,null,null,null,null,null,null,null,null,null,null,null,null,null,null,null,null,null,null,null,null,null,null,null,null,null,null,null,null,null,null,null,null,null,null,null,null,null,null,null,null,null,null,null,null,null,null,null,null,null,null,null,null,null,null,null,null,null,null,null,null,null,null,null,null,null,null,null,null,null,null,null,null,null,null,null,null,null,null,null,null,null,null,null,null,null,null,null,null,null,null,"شعبة"]
[null,30,"احمد عابدين عبد العاطى محمد سليمان","ÐßÑ",null,null,30301011502339,"2003-01-01",0,9,20,"عابدين عبد العاطى محمد سليمان",null,null,"اول",null,null,"مصرى",null,null,null,null,null,null,null,null,null,null,null,null,null,null,null,null,null,null,null,null,null,null,null,null,null,null,null,null,null,null,null,null,null,null,null,null,null,null,null,null,null,null,null,null,null,null,null,null,null,null,null,null,null,null,null,null,null,null,null,null,null,null,null,null,null,null,null,null,null,null,null,null,null,null,null,null,null,null,null,null,null,null,null,null,null,null,null,null,null,null,null,null,null,null,null,null,null,null,null,null,null,null,null,null,null,null,null,null,null,null,null,null,null,null,null,null,null,null,null,null,null,null,null,null,null,null,null,null,null,null,null,null,null,null,null,null,null,null,null,null,null,null,null,null,null,null,null,null,null,null,null,null,null,null,null,null,null,null,null,null,null,null,null,null,null,null,null,null,null,null,null,null,null,null,null,null,null,null,null,null,null,null,null,null,null,null,null,null,null,null,null,null,null,null,null,null,null,null,null,null,null,null,null,null,null,null,null,null,null,null,null,null,null,null,null,null,null,null,null,null,null,null,null,null,null,null,null,null,null,null,null,null,null,null,null,null,null,"ملابس"]
[null,31,"احمد عادل عبدالمعبود مغنم","ÐßÑ",null,null,30312011511852,"2003-12-01",0,10,19,"عادل عبدالمعبود مغنم",null,null,"اول",null,null,"مصرى",null,null,null,null,null,null,null,null,null,null,null,null,null,null,null,null,null,null,null,null,null,null,null,null,null,null,null,null,null,null,null,null,null,null,null,null,null,null,null,null,null,null,null,null,null,null,null,null,null,null,null,null,null,null,null,null,null,null,null,null,null,null,null,null,null,null,null,null,null,null,null,null,null,null,null,null,null,null,null,null,null,null,null,null,null,null,null,null,null,null,null,null,null,null,null,null,null,null,null,null,null,null,null,null,null,null,null,null,null,null,null,null,null,null,null,null,null,null,null,null,null,null,null,null,null,null,null,null,null,null,null,null,null,null,null,null,null,null,null,null,null,null,null,null,null,null,null,null,null,null,null,null,null,null,null,null,null,null,null,null,null,null,null,null,null,null,null,null,null,null,null,null,null,null,null,null,null,null,null,null,null,null,null,null,null,null,null,null,null,null,null,null,null,null,null,null,null,null,null,null,null,null,null,null,null,null,null,null,null,null,null,null,null,null,null,null,null,null,null,null,null,null,null,null,null,null,null,null,null,null,null,null,null,null,null,null,null,"تريكو"]
[null,32,"احمد عاطف احمد مجاهد",{"$f":"Kh_Date_Sex_Province(G43,2)","v":"ÐßÑ"},null,null,30307011500113,{"$f":"Kh_Date_Sex_Province($G43,1)","v":"2003-07-01"},{"$f":"IF(H43=\"\",\"\",IF(H43>1,DATEDIF(H43,$J$9,\"MD\"),\"\"))","v":0},{"$f":"IF(H43=\"\",\"\",IF(H43>1,DATEDIF(H43,$J$9,\"ym\"),\"\"))","v":3},{"$f":"IF(H43=\"\",\"\",IF(H43>1,DATEDIF(H43,$J$9,\"y\"),\"\"))","v":20},{"$f":"Kh_Father_Name(C43)","v":"عاطف احمد مجاهد"},null,null,"اول",null,null,"مصرى",null,null,null,null,null,null,null,null,null,null,null,null,null,null,null,null,null,null,null,null,null,null,null,null,null,null,null,null,null,null,null,null,null,null,null,null,null,null,null,null,null,null,null,null,null,null,null,null,null,null,null,null,null,null,null,null,null,null,null,null,null,null,null,null,null,null,null,null,null,null,null,null,null,null,null,null,null,null,null,null,null,null,null,null,null,null,null,null,null,null,null,null,null,null,null,null,null,null,null,null,null,null,null,null,null,null,null,null,null,null,null,null,null,null,null,null,null,null,null,null,null,null,null,null,null,null,null,null,null,null,null,null,null,null,null,null,null,null,null,null,null,null,null,null,null,null,null,null,null,null,null,null,null,null,null,null,null,null,null,null,null,null,null,null,null,null,null,null,null,null,null,null,null,null,null,null,null,null,null,null,null,null,null,null,null,null,null,null,null,null,null,null,null,null,null,null,null,null,null,null,null,null,null,null,null,null,null,null,null,null,null,null,null,null,null,null,null,null,null,null,null,null,null,null,null,null,null,null,null,null,null,null,null,null,null,null,null,"زخرفة"]
[null,33,"احمد عبدالحليم احمد الشورى","ÐßÑ",null,null,30309011505673,"2003-09-01",0,1,20,"عبدالحليم احمد الشورى",null,null,"اول",null,null,"مصرى",null,null,null,null,null,null,null,null,null,null,null,null,null,null,null,null,null,null,null,null,null,null,null,null,null,null,null,null,null,null,null,null,null,null,null,null,null,null,null,null,null,null,null,null,null,null,null,null,null,null,null,null,null,null,null,null,null,null,null,null,null,null,null,null,null,null,null,null,null,null,null,null,null,null,null,null,null,null,null,null,null,null,null,null,null,null,null,null,null,null,null,null,null,null,null,null,null,null,null,null,null,null,null,null,null,null,null,null,null,null,null,null,null,null,null,null,null,null,null,null,null,null,null,null,null,null,null,null,null,null,null,null,null,null,null,null,null,null,null,null,null,null,null,null,null,null,null,null,null,null,null,null,null,null,null,null,null,null,null,null,null,null,null,null,null,null,null,null,null,null,null,null,null,null,null,null,null,null,null,null,null,null,null,null,null,null,null,null,null,null,null,null,null,null,null,null,null,null,null,null,null,null,null,null,null,null,null,null,null,null,null,null,null,null,null,null,null,null,null,null,null,null,null,null,null,null,null,null,null,null,null,null,null,null,null,null,null,"تبريد"]
[null,34,"احمد عبدالحميد رمضان الفقي","ÐßÑ",null,null,30309161500076,"2003-09-16",15,0,20,"عبدالحميد رمضان الفقي",null,null,"اول",null,null,"مصرى",null,null,null,null,null,null,null,null,null,null,null,null,null,null,null,null,null,null,null,null,null,null,null,null,null,null,null,null,null,null,null,null,null,null,null,null,null,null,null,null,null,null,null,null,null,null,null,null,null,null,null,null,null,null,null,null,null,null,null,null,null,null,null,null,null,null,null,null,null,null,null,null,null,null,null,null,null,null,null,null,null,null,null,null,null,null,null,null,null,null,null,null,null,null,null,null,null,null,null,null,null,null,null,null,null,null,null,null,null,null,null,null,null,null,null,null,null,null,null,null,null,null,null,null,null,null,null,null,null,null,null,null,null,null,null,null,null,null,null,null,null,null,null,null,null,null,null,null,null,null,null,null,null,null,null,null,null,null,null,null,null,null,null,null,null,null,null,null,null,null,null,null,null,null,null,null,null,null,null,null,null,null,null,null,null,null,null,null,null,null,null,null,null,null,null,null,null,null,null,null,null,null,null,null,null,null,null,null,null,null,null,null,null,null,null,null,null,null,null,null,null,null,null,null,null,null,null,null,null,null,null,null,null,null,null,null,null,"مزدوج"]
[null,35,"احمد عبدالرحمن عيسي عبدالرحمن","ÐßÑ",null,null,30309151502313,"2003-09-15",16,0,20,"عبدالرحمن عيسي عبدالرحمن",null,null,"اول",null,null,"مصرى",null,null,null,null,null,null,null,null,null,null,null,null,null,null,null,null,null,null,null,null,null,null,null,null,null,null,null,null,null,null,null,null,null,null,null,null,null,null,null,null,null,null,null,null,null,null,null,null,null,null,null,null,null,null,null,null,null,null,null,null,null,null,null,null,null,null,null,null,null,null,null,null,null,null,null,null,null,null,null,null,null,null,null,null,null,null,null,null,null,null,null,null,null,null,null,null,null,null,null,null,null,null,null,null,null,null,null,null,null,null,null,null,null,null,null,null,null,null,null,null,null,null,null,null,null,null,null,null,null,null,null,null,null,null,null,null,null,null,null,null,null,null,null,null,null,null,null,null,null,null,null,null,null,null,null,null,null,null,null,null,null,null,null,null,null,null,null,null,null,null,null,null,null,null,null,null,null,null,null,null,null,null,null,null,null,null,null,null,null,null,null,null,null,null,null,null,null,null,null,null,null,null,null,null,null,null,null,null,null,null,null,null,null,null,null,null,null,null,null,null,null,null,null,null,null,null,null,null,null,null,null,null,null,null,null,null,null,"الكترونيات"]
[null,36,"احمد عبداللطيف ابراهيم الصافي","ÐßÑ",null,null,30305091500256,"2003-05-09",22,4,20,"عبداللطيف ابراهيم الصافي",null,null,"اول",null,null,"مصرى",null,null,null,null,null,null,null,null,null,null,null,null,null,null,null,null,null,null,null,null,null,null,null,null,null,null,null,null,null,null,null,null,null,null,null,null,null,null,null,null,null,null,null,null,null,null,null,null,null,null,null,null,null,null,null,null,null,null,null,null,null,null,null,null,null,null,null,null,null,null,null,null,null,null,null,null,null,null,null,null,null,null,null,null,null,null,null,null,null,null,null,null,null,null,null,null,null,null,null,null,null,null,null,null,null,null,null,null,null,null,null,null,null,null,null,null,null,null,null,null,null,null,null,null,null,null,null,null,null,null,null,null,null,null,null,null,null,null,null,null,null,null,null,null,null,null,null,null,null,null,null,null,null,null,null,null,null,null,null,null,null,null,null,null,null,null,null,null,null,null,null,null,null,null,null,null,null,null,null,null,null,null,null,null,null,null,null,null,null,null,null,null,null,null,null,null,null,null,null,null,null,null,null,null,null,null,null,null,null,null,null,null,null,null,null,null,null,null,null,null,null,null,null,null,null,null,null,null,null,null,null,null,null,null,null,null,null,"الكترونيات"]
[null,null,"احمد عزالدين محمد بكر","ÐßÑ",null,null,30303101502071,"2003-03-10",21,6,20,"عزالدين محمد بكر",null,null,"اول",null,null,"مصرى",null,null,null,null,null,null,null,null,null,null,null,null,null,null,null,null,null,null,null,null,null,null,null,null,null,null,null,null,null,null,null,null,null,null,null,null,null,null,null,null,null,null,null,null,null,null,null,null,null,null,null,null,null,null,null,null,null,null,null,null,null,null,null,null,null,null,null,null,null,null,null,null,null,null,null,null,null,null,null,null,null,null,null,null,null,null,null,null,null,null,null,null,null,null,null,null,null,null,null,null,null,null,null,null,null,null,null,null,null,null,null,null,null,null,null,null,null,null,null,null,null,null,null,null,null,null,null,null,null,null,null,null,null,null,null,null,null,null,null,null,null,null,null,null,null,null,null,null,null,null,null,null,null,null,null,null,null,null,null,null,null,null,null,null,null,null,null,null,null,null,null,null,null,null,null,null,null,null,null,null,null,null,null,null,null,null,null,null,null,null,null,null,null,null,null,null,null,null,null,null,null,null,null,null,null,null,null,null,null,null,null,null,null,null,null,null,null,null,null,null,null,null,null,null,null,null,null,null,null,null,null,null,null,null,null,null,null,"الكترونيات"]
[null,null,"احمد عزت عبدالغفار السيد","ÐßÑ",null,null,30306011506336,"2003-06-01",0,4,20,"عزت عبدالغفار السيد",null,null,"اول",null,null,"مصرى",null,null,null,null,null,null,null,null,null,null,null,null,null,null,null,null,null,null,null,null,null,null,null,null,null,null,null,null,null,null,null,null,null,null,null,null,null,null,null,null,null,null,null,null,null,null,null,null,null,null,null,null,null,null,null,null,null,null,null,null,null,null,null,null,null,null,null,null,null,null,null,null,null,null,null,null,null,null,null,null,null,null,null,null,null,null,null,null,null,null,null,null,null,null,null,null,null,null,null,null,null,null,null,null,null,null,null,null,null,null,null,null,null,null,null,null,null,null,null,null,null,null,null,null,null,null,null,null,null,null,null,null,null,null,null,null,null,null,null,null,null,null,null,null,null,null,null,null,null,null,null,null,null,null,null,null,null,null,null,null,null,null,null,null,null,null,null,null,null,null,null,null,null,null,null,null,null,null,null,null,null,null,null,null,null,null,null,null,null,null,null,null,null,null,null,null,null,null,null,null,null,null,null,null,null,null,null,null,null,null,null,null,null,null,null,null,null,null,null,null,null,null,null,null,null,null,null,null,null,null,null,null,null,null,null,null,null,"الكترونيات"]
[null,null,"احمد عصام علي عبده","ÐßÑ",null,null,30309271500853,"2003-09-27",4,0,20,"عصام علي عبده",null,null,"اول",null,null,"مصرى",null,null,null,null,null,null,null,null,null,null,null,null,null,null,null,null,null,null,null,null,null,null,null,null,null,null,null,null,null,null,null,null,null,null,null,null,null,null,null,null,null,null,null,null,null,null,null,null,null,null,null,null,null,null,null,null,null,null,null,null,null,null,null,null,null,null,null,null,null,null,null,null,null,null,null,null,null,null,null,null,null,null,null,null,null,null,null,null,null,null,null,null,null,null,null,null,null,null,null,null,null,null,null,null,null,null,null,null,null,null,null,null,null,null,null,null,null,null,null,null,null,null,null,null,null,null,null,null,null,null,null,null,null,null,null,null,null,null,null,null,null,null,null,null,null,null,null,null,null,null,null,null,null,null,null,null,null,null,null,null,null,null,null,null,null,null,null,null,null,null,null,null,null,null,null,null,null,null,null,null,null,null,null,null,null,null,null,null,null,null,null,null,null,null,null,null,null,null,null,null,null,null,null,null,null,null,null,null,null,null,null,null,null,null,null,null,null,null,null,null,null,null,null,null,null,null,null,null,null,null,null,null,null,null,null,null,null,"الكترونيات"]
[null,null,"احمد عطيه بهنسي بهنسي","ÐßÑ",null,null,30305171500338,"2003-05-17",14,4,20,"عطيه بهنسي بهنسي",null,null,"اول",null,null,"مصرى",null,null,null,null,null,null,null,null,null,null,null,null,null,null,null,null,null,null,null,null,null,null,null,null,null,null,null,null,null,null,null,null,null,null,null,null,null,null,null,null,null,null,null,null,null,null,null,null,null,null,null,null,null,null,null,null,null,null,null,null,null,null,null,null,null,null,null,null,null,null,null,null,null,null,null,null,null,null,null,null,null,null,null,null,null,null,null,null,null,null,null,null,null,null,null,null,null,null,null,null,null,null,null,null,null,null,null,null,null,null,null,null,null,null,null,null,null,null,null,null,null,null,null,null,null,null,null,null,null,null,null,null,null,null,null,null,null,null,null,null,null,null,null,null,null,null,null,null,null,null,null,null,null,null,null,null,null,null,null,null,null,null,null,null,null,null,null,null,null,null,null,null,null,null,null,null,null,null,null,null,null,null,null,null,null,null,null,null,null,null,null,null,null,null,null,null,null,null,null,null,null,null,null,null,null,null,null,null,null,null,null,null,null,null,null,null,null,null,null,null,null,null,null,null,null,null,null,null,null,null,null,null,null,null,null,null,null,"الكترونيات"]
[null,null,"احمد عقيبى ابو المجد السيد","ÐßÑ",null,null,30402161500491,"2004-02-16",15,7,19,"عقيبى ابو المجد السيد",null,null,"اول",null,null,"مصرى",null,null,null,null,null,null,null,null,null,null,null,null,null,null,null,null,null,null,null,null,null,null,null,null,null,null,null,null,null,null,null,null,null,null,null,null,null,null,null,null,null,null,null,null,null,null,null,null,null,null,null,null,null,null,null,null,null,null,null,null,null,null,null,null,null,null,null,null,null,null,null,null,null,null,null,null,null,null,null,null,null,null,null,null,null,null,null,null,null,null,null,null,null,null,null,null,null,null,null,null,null,null,null,null,null,null,null,null,null,null,null,null,null,null,null,null,null,null,null,null,null,null,null,null,null,null,null,null,null,null,null,null,null,null,null,null,null,null,null,null,null,null,null,null,null,null,null,null,null,null,null,null,null,null,null,null,null,null,null,null,null,null,null,null,null,null,null,null,null,null,null,null,null,null,null,null,null,null,null,null,null,null,null,null,null,null,null,null,null,null,null,null,null,null,null,null,null,null,null,null,null,null,null,null,null,null,null,null,null,null,null,null,null,null,null,null,null,null,null,null,null,null,null,null,null,null,null,null,null,null,null,null,null,null,null,null,null,"الكترونيات"]
[null,null,"احمد فتحي محمد جوده","ÐßÑ",null,null,30309301503615,"2003-09-30",1,0,20,"فتحي محمد جوده",null,null,"اول",null,null,"مصرى",null,null,null,null,null,null,null,null,null,null,null,null,null,null,null,null,null,null,null,null,null,null,null,null,null,null,null,null,null,null,null,null,null,null,null,null,null,null,null,null,null,null,null,null,null,null,null,null,null,null,null,null,null,null,null,null,null,null,null,null,null,null,null,null,null,null,null,null,null,null,null,null,null,null,null,null,null,null,null,null,null,null,null,null,null,null,null,null,null,null,null,null,null,null,null,null,null,null,null,null,null,null,null,null,null,null,null,null,null,null,null,null,null,null,null,null,null,null,null,null,null,null,null,null,null,null,null,null,null,null,null,null,null,null,null,null,null,null,null,null,null,null,null,null,null,null,null,null,null,null,null,null,null,null,null,null,null,null,null,null,null,null,null,null,null,null,null,null,null,null,null,null,null,null,null,null,null,null,null,null,null,null,null,null,null,null,null,null,null,null,null,null,null,null,null,null,null,null,null,null,null,null,null,null,null,null,null,null,null,null,null,null,null,null,null,null,null,null,null,null,null,null,null,null,null,null,null,null,null,null,null,null,null,null,null,null,null,"الكترونيات"]
[null,null,"احمد محروس ابراهيم عطا","ÐßÑ",null,null,30310011514271,"2003-10-01",0,0,20,"محروس ابراهيم عطا",null,null,"ثانى",null,null,"مصرى",null,null,null,null,null,null,null,null,null,null,null,null,null,null,null,null,null,null,null,null,null,null,null,null,null,null,null,null,null,null,null,null,null,null,null,null,null,null,null,null,null,null,null,null,null,null,null,null,null,null,null,null,null,null,null,null,null,null,null,null,null,null,null,null,null,null,null,null,null,null,null,null,null,null,null,null,null,null,null,null,null,null,null,null,null,null,null,null,null,null,null,null,null,null,null,null,null,null,null,null,null,null,null,null,null,null,null,null,null,null,null,null,null,null,null,null,null,null,null,null,null,null,null,null,null,null,null,null,null,null,null,null,null,null,null,null,null,null,null,null,null,null,null,null,null,null,null,null,null,null,null,null,null,null,null,null,null,null,null,null,null,null,null,null,null,null,null,null,null,null,null,null,null,null,null,null,null,null,null,null,null,null,null,null,null,null,null,null,null,null,null,null,null,null,null,null,null,null,null,null,null,null,null,null,null,null,null,null,null,null,null,null,null,null,null,null,null,null,null,null,null,null,null,null,null,null,null,null,null,null,null,null,null,null,null,null,null,"الكترونيات"]
[null,null,"احمد محمد جمال مصطفي علي","ÐßÑ",null,null,30305041500832,"2003-05-04",27,4,20,"محمد جمال مصطفي علي",null,null,"ثانى",null,null,"مصرى",null,null,null,null,null,null,null,null,null,null,null,null,null,null,null,null,null,null,null,null,null,null,null,null,null,null,null,null,null,null,null,null,null,null,null,null,null,null,null,null,null,null,null,null,null,null,null,null,null,null,null,null,null,null,null,null,null,null,null,null,null,null,null,null,null,null,null,null,null,null,null,null,null,null,null,null,null,null,null,null,null,null,null,null,null,null,null,null,null,null,null,null,null,null,null,null,null,null,null,null,null,null,null,null,null,null,null,null,null,null,null,null,null,null,null,null,null,null,null,null,null,null,null,null,null,null,null,null,null,null,null,null,null,null,null,null,null,null,null,null,null,null,null,null,null,null,null,null,null,null,null,null,null,null,null,null,null,null,null,null,null,null,null,null,null,null,null,null,null,null,null,null,null,null,null,null,null,null,null,null,null,null,null,null,null,null,null,null,null,null,null,null,null,null,null,null,null,null,null,null,null,null,null,null,null,null,null,null,null,null,null,null,null,null,null,null,null,null,null,null,null,null,null,null,null,null,null,null,null,null,null,null,null,null,null,null,null,"الكترونيات"]
[null,null,"احمد محمد حسين حسين قطب","ÐßÑ",null,null,30308011502732,"2003-08-01",0,2,20,"محمد حسين حسين قطب",null,null,"ثانى",null,null,"مصرى",null,null,null,null,null,null,null,null,null,null,null,null,null,null,null,null,null,null,null,null,null,null,null,null,null,null,null,null,null,null,null,null,null,null,null,null,null,null,null,null,null,null,null,null,null,null,null,null,null,null,null,null,null,null,null,null,null,null,null,null,null,null,null,null,null,null,null,null,null,null,null,null,null,null,null,null,null,null,null,null,null,null,null,null,null,null,null,null,null,null,null,null,null,null,null,null,null,null,null,null,null,null,null,null,null,null,null,null,null,null,null,null,null,null,null,null,null,null,null,null,null,null,null,null,null,null,null,null,null,null,null,null,null,null,null,null,null,null,null,null,null,null,null,null,null,null,null,null,null,null,null,null,null,null,null,null,null,null,null,null,null,null,null,null,null,null,null,null,null,null,null,null,null,null,null,null,null,null,null,null,null,null,null,null,null,null,null,null,null,null,null,null,null,null,null,null,null,null,null,null,null,null,null,null,null,null,null,null,null,null,null,null,null,null,null,null,null,null,null,null,null,null,null,null,null,null,null,null,null,null,null,null,null,null,null,null,null,"الكترونيات"]
[null,null,"احمد محمد خالد السنجابي","ÐßÑ",null,null,30310011517637,"2003-10-01",0,0,20,"محمد خالد السنجابي",null,null,"ثانى",null,null,"مصرى"]
[null,null,"احمد محمد شعبان الفقي","ÐßÑ",null,null,30305121500434,"2003-05-12",19,4,20,"محمد شعبان الفقي",null,null,"ثانى",null,null,"مصرى"]
[null,null,"احمد محمد عبدالنبي السيد","ÐßÑ",null,null,30301011501251,"2003-01-01",0,9,20,"محمد عبدالنبي السيد",null,null,"ثانى",null,null,"مصرى"]
[null,49,"احمد محمد كامل السيد","ÐßÑ",null,null,30401011515338,"2004-01-01",0,9,19,"محمد كامل السيد",null,null,"ثانى",null,null,"مصرى"]
[null,50,"احمد محمد محمود رزق","ÐßÑ",null,null,30304171500579,"2003-04-17",14,5,20,"محمد محمود رزق",null,null,"ثانى",null,null,"مصرى"]
[null,51,"احمد محمود ابراهيم الاسرج","ÐßÑ",null,null,30304011507852,"2003-04-01",0,6,20,"محمود ابراهيم الاسرج",null,null,"ثانى",null,null,"مصرى"]
[null,52,"احمد مصطفي حامد الدسوقي","ÐßÑ",null,null,30308261501154,"2003-08-26",5,1,20,"مصطفي حامد الدسوقي",null,null,"ثانى",null,null,"مصرى"]
[null,53,"احمد نبيه علي خضر","ÐßÑ",null,null,30301031500073,"2003-01-03",28,8,20,"نبيه علي خضر",null,null,"ثانى",null,null,"مصرى"]
[null,54,"احمد نسيم محمد عبدالحميد متولى","ÐßÑ",null,null,30307011500091,"2003-07-01",0,3,20,"نسيم محمد عبدالحميد متولى",null,null,"ثانى",null,null,"مصرى"]
[null,55,"احمد يسرى عبداللطيف محمود دحروج","ÐßÑ",null,null,30110051500118,"2001-10-05",26,11,21,"يسرى عبداللطيف محمود دحروج",null,null,"ثانى",null,null,"مصرى"]
[null,56,"اسامه حاتم رفعت غازي","ÐßÑ",null,null,30212161500811,"2002-12-16",15,9,20,"حاتم رفعت غازي",null,null,"ثانى",null,null,"مصرى"]
[null,57,"اسلام رضا عبدالونيس النجار","ÐßÑ",null,null,30402031500775,"2004-02-03",28,7,19,"رضا عبدالونيس النجار",null,null,"ثانى",null,null,"مصرى"]
[null,58,"اسلام عابد راغب مسعود","ÐßÑ",null,null,30301201500596,"2003-01-20",11,8,20,"عابد راغب مسعود",null,null,"ثانى",null,null,"مصرى"]
[null,59,"اسلام عبدالرحمن امين محمد على","ÐßÑ",null,null,30305251500436,"2003-05-25",6,4,20,"عبدالرحمن امين محمد على",null,null,"ثانى",null,null,"مصرى"]
[null,60,"اسلام عبدالله القصبى امين","ÐßÑ",null,null,30305051501195,"2003-05-05",26,4,20,"عبدالله القصبى امين",null,null,"ثانى",null,null,"مصرى"]
[null,61,"اسماعيل محمد اسماعيل الخطيب","ÐßÑ",null,null,30307141500778,"2003-07-14",17,2,20,"محمد اسماعيل الخطيب",null,null,"ثانى",null,null,"مصرى"]
[null,62,"اشرف ايهاب رمضان عبدالسلام","ÐßÑ",null,null,30308091500395,"2003-08-09",22,1,20,"ايهاب رمضان عبدالسلام",null,null,"ثانى",null,null,"مصرى"]
[null,63,"اشرف عبد الجواد عرفات عبد الجواد","ÐßÑ",null,null,30304281500256,"2003-04-28",3,5,20,"عبد الجواد عرفات عبد الجواد",null,null,"ثانى",null,null,"مصرى"]
[null,64,"السعيد عبدالفتاح السعيد مغنم",{"$f":"Kh_Date_Sex_Province(G75,2)","v":"ÐßÑ"},null,null,30309211501753,{"$f":"Kh_Date_Sex_Province($G75,1)","v":"2003-09-21"},{"$f":"IF(H75=\"\",\"\",IF(H75>1,DATEDIF(H75,$J$9,\"MD\"),\"\"))","v":10},{"$f":"IF(H75=\"\",\"\",IF(H75>1,DATEDIF(H75,$J$9,\"ym\"),\"\"))","v":0},{"$f":"IF(H75=\"\",\"\",IF(H75>1,DATEDIF(H75,$J$9,\"y\"),\"\"))","v":20},{"$f":"Kh_Father_Name(C75)","v":"عبدالفتاح السعيد مغنم"},null,null,"ثانى",null,null,"مصرى"]
[null,{"$f":"IF(C76=\"\",\"\",ROW()-11+$L$1)","v":65},"السيد حماده السيد ابوالخير","ÐßÑ",null,null,30308211500416,"2003-08-21",10,1,20,"حماده السيد ابوالخير",null,null,"ثانى",null,null,"مصرى"]
[null,66,"السيد رمضان  محمد محمود","ÐßÑ",null,null,30305291500196,"2003-05-29",2,4,20,"رمضان  محمد محمود",null,null,"ثانى",null,null,"مصرى"]
[null,67,"انطونيوس ملاك سعد عوض","ÐßÑ",null,null,30311021500275,"2003-11-02",29,10,19,"ملاك سعد عوض",null,null,"سادس",null,null,"مصرى"]
[null,68,"اياد ياسر السعيد سكريه","ÐßÑ",null,null,30310011525311,"2003-10-01",0,0,20,"ياسر السعيد سكريه",null,null,"ثانى",null,null,"مصرى"]
[null,69,"ايمن علي جمعه فرج","ÐßÑ",null,null,30305071500039,"2003-05-07",24,4,20,"علي جمعه فرج",null,null,"ثانى",null,null,"مصرى"]
[null,70,"باهر اسماعيل على محمود","ÐßÑ",null,null,30210011523071,"2002-10-01",0,0,21,"اسماعيل على محمود",null,null,"ثانى",null,null,"مصرى"]
[null,71,"بسيونى حسن مصطفى على","ÐßÑ",null,null,30308191500937,"2003-08-19",12,1,20,"حسن مصطفى على",null,null,"ثانى",null,null,"مصرى"]
[null,72,"حازم  صبري  عبدالحميد شوشه","ÐßÑ",null,null,30305221500792,"2003-05-22",9,4,20,"صبري  عبدالحميد شوشه",null,null,"ثانى",null,null,"مصرى"]
[null,73,"حازم محمد ابراهيم محمد الفقى","ÐßÑ",null,null,30310301500231,"2003-10-30",1,11,19,"محمد ابراهيم محمد الفقى",null,null,"ثانى",null,null,"مصرى"]
[null,74,"حامد فريد حامد شراكي","ÐßÑ",null,null,30303031506759,"2003-03-03",28,6,20,"فريد حامد شراكي",null,null,"ثانى",null,null,"مصرى"]
[null,75,"حسام فكري عبدالواحد جابر","ÐßÑ",null,null,30210281500871,"2002-10-28",3,11,20,"فكري عبدالواحد جابر",null,null,"ثانى",null,null,"مصرى"]
[null,76,"حسام محمد رمضان عبدالقادر الصعيدى","ÐßÑ",null,null,30402081500253,"2004-02-08",23,7,19,"محمد رمضان عبدالقادر الصعيدى",null,null,"ثانى",null,null,"مصرى"]
[null,77,"حسن عبدالعاطى فيصل عبدالعاطى","ÐßÑ",null,null,30401011518477,"2004-01-01",0,9,19,"عبدالعاطى فيصل عبدالعاطى",null,null,"ثانى",null,null,"مصرى"]
[null,78,"حسن محمد كمال سند","ÐßÑ",null,null,30305011501516,"2003-05-01",0,5,20,"محمد كمال سند",null,null,"ثانى",null,null,"مصرى"]
[null,79,"حسين محمد اسماعيل حسين","ÐßÑ",null,null,30401251500478,"2004-01-25",6,8,19,"محمد اسماعيل حسين",null,null,"ثانى",null,null,"مصرى"]
[null,80,"خالد احمد ابراهيم حسن","ÐßÑ",null,null,30402191500232,"2004-02-19",12,7,19,"احمد ابراهيم حسن",null,null,"ثانى",null,null,"مصرى"]
[null,81,"خالد محمد احمد محمد","ÐßÑ",null,null,30401011515516,"2004-01-01",0,9,19,"محمد احمد محمد",null,null,"ثانى",null,null,"مصرى"]
[null,82,"خالد ممدوح محمد محمد","ÐßÑ",null,null,30401011518396,"2004-01-01",0,9,19,"ممدوح محمد محمد",null,null,"ثانى",null,null,"مصرى"]
[null,83,"رشاد محمد رشاد عبدالمقصود","ÐßÑ",null,null,30311291501354,"2003-11-29",2,10,19,"محمد رشاد عبدالمقصود",null,null,"ثانى",null,null,"مصرى"]
[null,84,"رضا يسري عطيه عبدالحي","ÐßÑ",null,null,30301221500193,"2003-01-22",9,8,20,"يسري عطيه عبدالحي",null,null,"ثانى",null,null,"مصرى"]
[null,85,"رمضان السعيد رمضان عبد الحميد","ÐßÑ",null,null,30204131501659,"2002-04-13",18,5,21,"السعيد رمضان عبد الحميد",null,null,"ثانى",null,null,"مصرى"]
[null,86,"زياد ابراهيم محمد ياسين","ÐßÑ",null,null,30304151501137,"2003-04-15",16,5,20,"ابراهيم محمد ياسين",null,null,"ثانى",null,null,"مصرى"]
[null,87,"سيد عاطف السيد حسين","ÐßÑ",null,null,30306050105772,"2003-06-05",26,3,20,"عاطف السيد حسين",null,null,"ثالث",null,null,"مصرى"]
[null,88,"طاهر ابو زيد فتحي  بسيوني","ÐßÑ",null,null,30309231500419,"2003-09-23",8,0,20,"ابو زيد فتحي  بسيوني",null,null,"ثالث",null,null,"مصرى"]
[null,89,"عبدالرحمن ابراهيم محمد خميس","ÐßÑ",null,null,30301011503114,"2003-01-01",0,9,20,"ابراهيم محمد خميس",null,null,"ثالث",null,null,"مصرى"]
[null,90,"عبدالرحمن اسماعيل عبدالسميع بسيونى","ÐßÑ",null,null,30312011511879,"2003-12-01",0,10,19,"اسماعيل عبدالسميع بسيونى",null,null,"ثالث",null,null,"مصرى"]
[null,91,"عبدالرحمن اسماعيل محمد السيد الحايس","ÐßÑ",null,null,30402251501314,"2004-02-25",6,7,19,"اسماعيل محمد السيد الحايس",null,null,"ثالث",null,null,"مصرى"]
[null,92,"عبدالرحمن اشرف محمد ابوالعنين","ÐßÑ",null,null,30306031500792,"2003-06-03",28,3,20,"اشرف محمد ابوالعنين",null,null,"ثالث",null,null,"مصرى"]
[null,93,"عبدالرحمن الصافي قاسم الصافي","ÐßÑ",null,null,30304041500437,"2003-04-04",27,5,20,"الصافي قاسم الصافي",null,null,"ثالث",null,null,"مصرى"]
[null,94,"عبدالرحمن حلمى محمود غازى","ÐßÑ",null,null,30306141500496,"2003-06-14",17,3,20,"حلمى محمود غازى",null,null,"ثالث",null,null,"مصرى"]
[null,95,"عبدالرحمن حمدي حسن عبدالكريم","ÐßÑ",null,null,30304101502019,"2003-04-10",21,5,20,"حمدي حسن عبدالكريم",null,null,"ثالث",null,null,"مصرى"]
[null,96,"عبدالرحمن حمدي شحاتة محمد",{"$f":"Kh_Date_Sex_Province(G107,2)","v":"ÐßÑ"},null,null,30212141500874,{"$f":"Kh_Date_Sex_Province($G107,1)","v":"2002-12-14"},{"$f":"IF(H107=\"\",\"\",IF(H107>1,DATEDIF(H107,$J$9,\"MD\"),\"\"))","v":17},{"$f":"IF(H107=\"\",\"\",IF(H107>1,DATEDIF(H107,$J$9,\"ym\"),\"\"))","v":9},{"$f":"IF(H107=\"\",\"\",IF(H107>1,DATEDIF(H107,$J$9,\"y\"),\"\"))","v":20},{"$f":"Kh_Father_Name(C107)","v":"حمدي شحاتة محمد"},null,null,"ثالث",null,null,"مصرى"]
[null,97,"عبدالرحمن خالد ابراهيم عطية","ÐßÑ",null,null,30401011515311,"2004-01-01",0,9,19,"خالد ابراهيم عطية",null,null,"ثالث",null,null,"مصرى"]
[null,98,"عبدالرحمن خالد السعيد عبد السلام","ÐßÑ",null,null,30303201501412,"2003-03-20",11,6,20,"خالد السعيد عبد السلام",null,null,"ثالث",null,null,"مصرى"]
[null,99,"عبدالرحمن سالم علي علي مرعي","ÐßÑ",null,null,30306101501457,"2003-06-10",21,3,20,"سالم علي علي مرعي",null,null,"ثالث",null,null,"مصرى"]
[null,100,"عبدالرحمن صابر سعد خفاجه","ÐßÑ",null,null,30304201501036,"2003-04-20",11,5,20,"صابر سعد خفاجه",null,null,"ثالث",null,null,"مصرى"]
[null,101,"عبدالرحمن عرفة عبده محمود محمد","ÐßÑ",null,null,30307011500075,"2003-07-01",0,3,20,"عرفة عبده محمود محمد",null,null,"ثالث",null,null,"مصرى"]
[null,102,"عبدالرحمن محمد حلمى قطب","ÐßÑ",null,null,30211241500638,"2002-11-24",7,10,20,"محمد حلمى قطب",null,null,"ثالث",null,null,"مصرى"]
[null,103,"عبدالرحمن محمد عنتر محمد","ÐßÑ",null,null,30310251501096,"2003-10-25",6,11,19,"محمد عنتر محمد",null,null,"ثالث",null,null,"مصرى"]
[null,104,"عبدالرحمن ياسر عبد الرحمن محمد متولى","ÐßÑ",null,null,30306121500473,"2003-06-12",19,3,20,"ياسر عبد الرحمن محمد متولى",null,null,"ثالث",null,null,"مصرى"]
[null,105,"عبدالستار ابراهيم عبدالستار محمد النجار","ÐßÑ",null,null,30305221500199,"2003-05-22",9,4,20,"ابراهيم عبدالستار محمد النجار",null,null,"ثالث",null,null,"مصرى"]
[null,106,"عبدالعزيز عادل عبدالعزيز اسماعيل","ÐßÑ",null,null,30401011515257,"2004-01-01",0,9,19,"عادل عبدالعزيز اسماعيل",null,null,"ثالث",null,null,"مصرى"]
[null,107,"عبدالله السيد عبدالله عبداللطيف","ÐßÑ",null,null,30312011503914,"2003-12-01",0,10,19,"السيد عبدالله عبداللطيف",null,null,"ثالث",null,null,"مصرى"]
[null,108,"عبدالله السيد عبدالمنعم السيد","ÐßÑ",null,null,30308131500857,"2003-08-13",18,1,20,"السيد عبدالمنعم السيد",null,null,"ثالث",null,null,"مصرى"]
[null,109,"عبدالله النميرى احمد ابراهيم","ÐßÑ",null,null,30307311500093,"2003-07-31",0,2,20,"النميرى احمد ابراهيم",null,null,"ثالث",null,null,"مصرى"]
[null,110,"عبدالله رمضان محمد مرسي","ÐßÑ",null,null,30309151500159,"2003-09-15",16,0,20,"رمضان محمد مرسي",null,null,"ثالث",null,null,"مصرى"]
[null,111,"عبدالله عاطف احمد عبده","ÐßÑ",null,null,30211051500518,"2002-11-05",26,10,20,"عاطف احمد عبده",null,null,"ثالث",null,null,"مصرى"]
[null,112,"عبدالله على عبد الجواد عبد الله علي","ÐßÑ",null,null,30308181500335,"2003-08-18",13,1,20,"على عبد الجواد عبد الله علي",null,null,"ثالث",null,null,"مصرى"]
[null,113,"عبدالله فايز عبدالباسط عبدالله","ÐßÑ",null,null,30311161501271,"2003-11-16",15,10,19,"فايز عبدالباسط عبدالله",null,null,"ثالث",null,null,"مصرى"]
[null,114,"عبدالله كرم عبدالله عبدالحليم","ÐßÑ",null,null,30307052601595,"2003-07-05",26,2,20,"كرم عبدالله عبدالحليم",null,null,"ثالث",null,null,"مصرى"]
[null,115,"عبدالله محمد حسن فيصل","ÐßÑ",null,null,30301011502614,"2003-01-01",0,9,20,"محمد حسن فيصل",null,null,"ثالث",null,null,"مصرى"]
[null,116,"عبدالله محمد عبدالحليم محمود خليل","ÐßÑ",null,null,30303211501259,"2003-03-21",10,6,20,"محمد عبدالحليم محمود خليل",null,null,"ثالث",null,null,"مصرى"]
[null,117,"عبدالله محمود ابراهيم السنوسي","ÐßÑ",null,null,30309291500353,"2003-09-29",2,0,20,"محمود ابراهيم السنوسي",null,null,"ثالث",null,null,"مصرى"]
[null,118,"عبدالله مسعد محمد حارس","ÐßÑ",null,null,30401201502739,"2004-01-20",11,8,19,"مسعد محمد حارس",null,null,"ثالث",null,null,"مصرى"]
[null,119,"عبدالله نجاح رمضان السعدنى","ÐßÑ",null,null,30301011502991,"2003-01-01",0,9,20,"نجاح رمضان السعدنى",null,null,"ثالث",null,null,"مصرى"]
[null,120,"عبدالهادى احمد محمد مرسى","ÐßÑ",null,null,30305021500577,"2003-05-02",29,4,20,"احمد محمد مرسى",null,null,"ثالث",null,null,"مصرى"]
[null,121,"عبدالوهاب ابراهيم احمد عصر","ÐßÑ",null,null,30310011501137,"2003-10-01",0,0,20,"ابراهيم احمد عصر",null,null,"ثالث",null,null,"مصرى"]
[null,122,"عبدالوهاب محمد محمد عبد الحميد درويش","ÐßÑ",null,null,30309151500191,"2003-09-15",16,0,20,"محمد محمد عبد الحميد درويش",null,null,"ثالث",null,null,"مصرى"]
[null,123,"عطية مسعد عطية محمد نصر حمد","ÐßÑ",null,null,30304101500954,"2003-04-10",21,5,20,"مسعد عطية محمد نصر حمد",null,null,"ثالث",null,null,"مصرى"]
[null,124,"علاء ابراهيم على رمضان ابو العلا","ÐßÑ",null,null,30308011502651,"2003-08-01",0,2,20,"ابراهيم على رمضان ابو العلا",null,null,"ثالث",null,null,"مصرى"]
[null,125,"علاء اشرف السيد عبدالمتجلي","ÐßÑ",null,null,30308081500478,"2003-08-08",23,1,20,"اشرف السيد عبدالمتجلي",null,null,"ثالث",null,null,"مصرى"]
[null,126,"علاء خالد عبدالحليم السقا","ÐßÑ",null,null,30306041500979,"2003-06-04",27,3,20,"خالد عبدالحليم السقا",null,null,"ثالث",null,null,"مصرى"]
[null,127,"علاء عمادالدين احمد سلطان","ÐßÑ",null,null,30401011515591,"2004-01-01",0,9,19,"عمادالدين احمد سلطان",null,null,"ثالث",null,null,"مصرى"]
[null,128,"على رضا على شعبان","ÐßÑ",null,null,30307241501399,"2003-07-24",{"$f":"IF(H139=\"\",\"\",IF(H139>1,DATEDIF(H139,$J$9,\"MD\"),\"\"))","v":7},2,20,"رضا على شعبان",null,null,"ثالث",null,null,"مصرى"]
[null,{"$f":"IF(C140=\"\",\"\",ROW()-11+$L$1)","v":129},"علي احمد محمد علي سلامة",{"$f":"Kh_Date_Sex_Province(G140,2)","v":"ÐßÑ"},null,null,30304131501238,{"$f":"Kh_Date_Sex_Province($G140,1)","v":"2003-04-13"},{"$f":"IF(H140=\"\",\"\",IF(H140>1,DATEDIF(H140,$J$9,\"MD\"),\"\"))","v":18},{"$f":"IF(H140=\"\",\"\",IF(H140>1,DATEDIF(H140,$J$9,\"ym\"),\"\"))","v":5},{"$f":"IF(H140=\"\",\"\",IF(H140>1,DATEDIF(H140,$J$9,\"y\"),\"\"))","v":20},{"$f":"Kh_Father_Name(C140)","v":"احمد محمد علي سلامة"},null,null,"ثالث",null,null,"مصرى"]
[null,130,"علي السيد عرفة  علي حسين","ÐßÑ",null,null,30303151502757,"2003-03-15",16,6,20,"السيد عرفة  علي حسين",null,null,"رابع",null,null,"مصرى"]
[null,131,"علي ممدوح بهنسي عطية","ÐßÑ",null,null,30402098800293,"2004-02-09",22,7,19,"ممدوح بهنسي عطية",null,null,"رابع",null,null,"مصرى"]
[null,132,"عمر ابراهيم احمد ابراهيم","ÐßÑ",null,null,30401071500739,"2004-01-07",24,8,19,"ابراهيم احمد ابراهيم",null,null,"رابع",null,null,"مصرى"]
[null,133,"عمر احمد محمد الشهاوي","ÐßÑ",null,null,30306011500532,"2003-06-01",0,4,20,"احمد محمد الشهاوي",null,null,"رابع",null,null,"مصرى"]
[null,134,"عمر السيد السيد موسى","ÐßÑ",null,null,30310011517114,"2003-10-01",0,0,20,"السيد السيد موسى",null,null,"رابع",null,null,"مصرى"]
[null,135,"عمر حامد عبدالعليم ابراهيم","ÐßÑ",null,null,30310011536216,"2003-10-01",0,0,20,"حامد عبدالعليم ابراهيم",null,null,"رابع",null,null,"مصرى"]
[null,136,"عمر طارق محمد الشافعي","ÐßÑ",null,null,30309291500337,"2003-09-29",2,0,20,"طارق محمد الشافعي",null,null,"رابع",null,null,"مصرى"]
[null,137,"عمر عماد رجب فرج البنا","ÐßÑ",null,null,30402231500079,"2004-02-23",8,7,19,"عماد رجب فرج البنا",null,null,"رابع",null,null,"مصرى"]
[null,138,"فارس سمير يوسف عبد العزيز عامر","ÐßÑ",null,null,30309201502816,"2003-09-20",11,0,20,"سمير يوسف عبد العزيز عامر",null,null,"رابع",null,null,"مصرى"]
[null,139,"فارس وليد محمود الزهيري","ÐßÑ",null,null,30309301502155,"2003-09-30",1,0,20,"وليد محمود الزهيري",null,null,"رابع",null,null,"مصرى"]
[null,140,"فتحى عادل فتحى محمد الحايس","ÐßÑ",null,null,30311061500219,"2003-11-06",25,10,19,"عادل فتحى محمد الحايس",null,null,"رابع",null,null,"مصرى"]
[null,141,"كريم اسامه عبدالرازق ابوالعباس","ÐßÑ",null,null,30302201500355,"2003-02-20",11,7,20,"اسامه عبدالرازق ابوالعباس",null,null,"رابع",null,null,"مصرى"]
[null,142,"كريم كرم يوسف ابوشهبه","ÐßÑ",null,null,30301011500174,"2003-01-01",0,9,20,"كرم يوسف ابوشهبه",null,null,"رابع",null,null,"مصرى"]
[null,143,"كريم محمد السيد علي ابوالمعاطي","ÐßÑ",null,null,30302091201098,"2003-02-09",22,7,20,"محمد السيد علي ابوالمعاطي",null,null,"رابع",null,null,"مصرى"]
[null,144,"كيرلس ميلاد كمال جبران","ÐßÑ",null,null,30309041500579,"2003-09-04",27,0,20,"ميلاد كمال جبران",null,null,"سادس",null,null,"مصرى"]
[null,145,"لطفي ماهر لطفي ابوالفتوح","ÐßÑ",null,null,30402151501112,"2004-02-15",16,7,19,"ماهر لطفي ابوالفتوح",null,null,"رابع",null,null,"مصرى"]
[null,146,"مايكل عادل فوزى وهبة","ÐßÑ",null,null,30308161500819,"2003-08-16",15,1,20,"عادل فوزى وهبة",null,null,"سادس",null,null,"مصرى"]
[null,147,"مجدى خالد زكريا محمد","ÐßÑ",null,null,30205071500719,"2002-05-07",24,4,21,"خالد زكريا محمد",null,null,"رابع",null,null,"مصرى"]
[null,148,"محمد ابراهيم الدمرداش عطيان","ÐßÑ",null,null,30308051500171,"2003-08-05",26,1,20,"ابراهيم الدمرداش عطيان",null,null,"رابع",null,null,"مصرى"]
[null,149,"محمد ابراهيم عبدالمنعم علي","ÐßÑ",null,null,30310231500271,"2003-10-23",8,11,19,"ابراهيم عبدالمنعم علي",null,null,"رابع",null,null,"مصرى"]
[null,150,"محمد احمد اسماعيل عزاز","ÐßÑ",null,null,30304171500633,"2003-04-17",14,5,20,"احمد اسماعيل عزاز",null,null,"رابع",null,null,"مصرى"]
[null,151,"محمد احمد حسن خضر","ÐßÑ",null,null,30401011515273,"2004-01-01",0,9,19,"احمد حسن خضر",null,null,"رابع",null,null,"مصرى"]
[null,152,"محمد احمد حسن شرف الدين","ÐßÑ",null,null,30301121500234,"2003-01-12",19,8,20,"احمد حسن شرف الدين",null,null,"رابع",null,null,"مصرى"]
[null,153,"محمد احمد حسن محمد","ÐßÑ",null,null,30401201500396,"2004-01-20",11,8,19,"احمد حسن محمد",null,null,"رابع",null,null,"مصرى"]
[null,154,"محمد احمد رياض عبدالخالق على حسن","ÐßÑ",null,null,30308011502899,"2003-08-01",0,2,20,"احمد رياض عبدالخالق على حسن",null,null,"رابع",null,null,"مصرى"]
[null,155,"محمد احمد شعبان بلتاجي","ÐßÑ",null,null,30305201500354,"2003-05-20",11,4,20,"احمد شعبان بلتاجي",null,null,"رابع",null,null,"مصرى"]
[null,156,"محمد احمد عبدالرحمن خضر","ÐßÑ",null,null,30403011501755,"2004-03-01",0,7,19,"احمد عبدالرحمن خضر",null,null,"رابع",null,null,"مصرى"]
[null,157,"محمد احمد محمد ابوالروس","ÐßÑ",null,null,30310011526512,"2003-10-01",0,0,20,"احمد محمد ابوالروس",null,null,"رابع",null,null,"مصرى"]
[null,158,"محمد اشرف الدسوقي الدسوقي","ÐßÑ",null,null,30308101500399,"2003-08-10",21,1,20,"اشرف الدسوقي الدسوقي",null,null,"رابع",null,null,"مصرى"]
[null,159,"محمد اشرف عبدالعليم حسنين","ÐßÑ",null,null,30307151501535,"2003-07-15",16,2,20,"اشرف عبدالعليم حسنين",null,null,"رابع",null,null,"مصرى"]
[null,160,"محمد الجوهري عبدالفتاح الجوهري","ÐßÑ",null,null,30310011532113,"2003-10-01",0,0,20,"الجوهري عبدالفتاح الجوهري",null,null,"رابع",null,null,"مصرى"]
[null,161,"محمد السعيد سيداحمد شعيب","ÐßÑ",null,null,30304011507895,"2003-04-01",0,6,20,"السعيد سيداحمد شعيب",null,null,"رابع",null,null,"مصرى"]
[null,162,"محمد السعيد عبدالسيد عطيه","ÐßÑ",null,null,30312011506557,"2003-12-01",0,10,19,"السعيد عبدالسيد عطيه",null,null,"رابع",null,null,"مصرى"]
[null,163,"محمد السيد محمد طه المغازي","ÐßÑ",null,null,30306101501414,"2003-06-10",21,3,20,"السيد محمد طه المغازي",null,null,"رابع",null,null,"مصرى"]
[null,164,"محمد انس يوسف طلحة","ÐßÑ",null,null,30304261500179,"2003-04-26",5,5,20,"انس يوسف طلحة",null,null,"رابع",null,null,"مصرى"]
[null,165,"محمد تامر عبدالعزيز السيد عبدالعزيز","ÐßÑ",null,null,30311011501699,"2003-11-01",0,11,19,"تامر عبدالعزيز السيد عبدالعزيز",null,null,"رابع",null,null,"مصرى"]
[null,166,"محمد جهاد احمد النجار","ÐßÑ",null,null,30306261500155,"2003-06-26",5,3,20,"جهاد احمد النجار",null,null,"رابع",null,null,"مصرى"]
[null,167,"محمد حسن محمد على حسن","ÐßÑ",null,null,30305121500191,"2003-05-12",19,4,20,"حسن محمد على حسن",null,null,"رابع",null,null,"مصرى"]
[null,168,"محمد حماده محمد سعد","ÐßÑ",null,null,30401011518299,"2004-01-01",0,9,19,"حماده محمد سعد",null,null,"رابع",null,null,"مصرى"]
[null,169,"محمد خالد عبد العليم محمد جاد الله","ÐßÑ",null,null,30304021500651,"2003-04-02",29,5,20,"خالد عبد العليم محمد جاد الله",null,null,"رابع",null,null,"مصرى"]
[null,170,"محمد رضا عطيه زهران","ÐßÑ",null,null,30308091501553,"2003-08-09",22,1,20,"رضا عطيه زهران",null,null,"رابع",null,null,"مصرى"]
[null,171,"محمد رضا غريب شعبان","ÐßÑ",null,null,30210251500931,"2002-10-25",6,11,20,"رضا غريب شعبان",null,null,"رابع",null,null,"مصرى"]
[null,172,"محمد زين على احمد","ÐßÑ",null,null,30212241500413,"2002-12-24",7,9,20,"زين على احمد",null,null,"رابع",null,null,"مصرى"]
[null,173,"محمد سلامه السعيد عيد","ÐßÑ",null,null,30302081501417,"2003-02-08",23,7,20,"سلامه السعيد عيد",null,null,"رابع",null,null,"مصرى"]
[null,174,"محمد شاكر علي السعداوي","ÐßÑ",null,null,30401011536491,"2004-01-01",0,9,19,"شاكر علي السعداوي",null,null,"رابع",null,null,"مصرى"]
[null,175,"محمد صبحي قنديل عبدالسلام","ÐßÑ",null,null,30210251500915,"2002-10-25",6,11,20,"صبحي قنديل عبدالسلام",null,null,"خامس",null,null,"مصرى"]
[null,176,"محمد صبرى مصطفى بيومى","ÐßÑ",null,null,30312188800617,"2003-12-18",13,9,19,"صبرى مصطفى بيومى",null,null,"خامس",null,null,"مصرى"]
[null,177,"محمد صبري محمد الموافي","ÐßÑ",null,null,30307151501233,"2003-07-15",16,2,20,"صبري محمد الموافي",null,null,"خامس",null,null,"مصرى"]
[null,178,"محمد طارق محمد فريد","ÐßÑ",null,null,30308091500492,"2003-08-09",22,1,20,"طارق محمد فريد",null,null,"خامس",null,null,"مصرى"]
[null,179,"محمد عادل السيد ندا","ÐßÑ",null,null,30306051500071,"2003-06-05",26,3,20,"عادل السيد ندا",null,null,"خامس",null,null,"مصرى"]
[null,180,"محمد عادل محمد هنداوي","ÐßÑ",null,null,30402121500774,"2004-02-12",19,7,19,"عادل محمد هنداوي",null,null,"خامس",null,null,"مصرى"]
[null,181,"محمد عباس ابراهيم عباس","ÐßÑ",null,null,30312161500514,"2003-12-16",15,9,19,"عباس ابراهيم عباس",null,null,"خامس",null,null,"مصرى"]
[null,182,"محمد عبد العزيز محمد غازي","ÐßÑ",null,null,30307011506316,"2003-07-01",0,3,20,"عبد العزيز محمد غازي",null,null,"خامس",null,null,"مصرى"]
[null,183,"محمد عبد الفتاح محمد عبد الفتاح","ÐßÑ",null,null,30401011515478,"2004-01-01",0,9,19,"عبد الفتاح محمد عبد الفتاح",null,null,"خامس",null,null,"مصرى"]
[null,184,"محمد عبدالجواد اسماعيل عبد الله عمر","ÐßÑ",null,null,30308261501014,"2003-08-26",5,1,20,"عبدالجواد اسماعيل عبد الله عمر",null,null,"خامس",null,null,"مصرى"]
[null,185,"محمد عبدالحليم حسن محمود","ÐßÑ",null,null,30110171500251,"2001-10-17",14,11,21,"عبدالحليم حسن محمود",null,null,"خامس",null,null,"مصرى"]
[null,186,"محمد عبدالحميد توفيق هليل","ÐßÑ",null,null,30303041500635,"2003-03-04",27,6,20,"عبدالحميد توفيق هليل",null,null,"خامس",null,null,"مصرى"]
[null,187,"محمد عبدالفتاح السيد على عبدالمولى رطب","ÐßÑ",null,null,30307211500738,"2003-07-21",10,2,20,"عبدالفتاح السيد على عبدالمولى رطب",null,null,"خامس",null,null,"مصرى"]
[null,188,"محمد عبدالقادر محمد الشربيني","ÐßÑ",null,null,30309091500294,"2003-09-09",22,0,20,"عبدالقادر محمد الشربيني",null,null,"خامس",null,null,"مصرى"]
[null,189,"محمد عبداللطيف عبدالمنعم خليل","ÐßÑ",null,null,30308161500835,"2003-08-16",15,1,20,"عبداللطيف عبدالمنعم خليل",null,null,"خامس",null,null,"مصرى"]
[null,190,"محمد عبدالله محمد احمد","ÐßÑ",null,null,30305011501915,"2003-05-01",0,5,20,"عبدالله محمد احمد",null,null,"خامس",null,null,"مصرى"]
[null,191,"محمد عرفه محمد حنفي","ÐßÑ",null,null,30308251500117,"2003-08-25",6,1,20,"عرفه محمد حنفي",null,null,"خامس",null,null,"مصرى"]
[null,192,"محمد عصام عبدالسلام الحو","ÐßÑ",null,null,30305221500814,"2003-05-22",9,4,20,"عصام عبدالسلام الحو",null,null,"خامس",null,null,"مصرى"]
[null,{"$f":"IF(C204=\"\",\"\",ROW()-11+$L$1)","v":193},"محمد علاء الدين محمود متولى",{"$f":"Kh_Date_Sex_Province(G204,2)","v":"ÐßÑ"},null,null,30401131500636,{"$f":"Kh_Date_Sex_Province($G204,1)","v":"2004-01-13"},{"$f":"IF(H204=\"\",\"\",IF(H204>1,DATEDIF(H204,$J$9,\"MD\"),\"\"))","v":18},{"$f":"IF(H204=\"\",\"\",IF(H204>1,DATEDIF(H204,$J$9,\"ym\"),\"\"))","v":8},{"$f":"IF(H204=\"\",\"\",IF(H204>1,DATEDIF(H204,$J$9,\"y\"),\"\"))","v":19},{"$f":"Kh_Father_Name(C204)","v":"علاء الدين محمود متولى"},null,null,"خامس",null,null,"مصرى"]
[null,194,"محمد فتحى شوقى محمد حسن","ÐßÑ",null,null,30304121501116,"2003-04-12",19,5,20,"فتحى شوقى محمد حسن",null,null,"خامس",null,null,"مصرى"]
[null,195,"محمد فتحي حسن الزهيري","ÐßÑ",null,null,30304018800695,"2003-04-01",0,6,20,"فتحي حسن الزهيري",null,null,"خامس",null,null,"مصرى"]
[null,196,"محمد كمال حسن الخميسي","ÐßÑ",null,null,30305051500156,"2003-05-05",26,4,20,"كمال حسن الخميسي",null,null,"خامس",null,null,"مصرى"]
[null,197,"محمد ماهر صلاح مصطفي","ÐßÑ",null,null,30309051500518,"2003-09-05",26,0,20,"ماهر صلاح مصطفي",null,null,"خامس",null,null,"مصرى"]
[null,198,"محمد مجدي محمد احمد القارب","ÐßÑ",null,null,30304251500235,"2003-04-25",6,5,20,"مجدي محمد احمد القارب",null,null,"خامس",null,null,"مصرى"]
[null,199,"محمد محمود محمد المصرى","ÐßÑ",null,null,30307071503138,"2003-07-07",24,2,20,"محمود محمد المصرى",null,null,"خامس",null,null,"مصرى"]
[null,200,"محمد محي الدين عبده حجازي","ÐßÑ",null,null,30309231500435,"2003-09-23",8,0,20,"محي الدين عبده حجازي",null,null,"خامس",null,null,"مصرى"]
[null,201,"محمد مدحت  اسماعيل الشناوي الشوبري","ÐßÑ",null,null,30308231501435,"2003-08-23",8,1,20,"مدحت  اسماعيل الشناوي الشوبري",null,null,"خامس",null,null,"مصرى"]
[null,202,"محمد مصطفى عبدالحليم محمد","ÐßÑ",null,null,30404011501794,"2004-04-01",0,6,19,"مصطفى عبدالحليم محمد",null,null,"خامس",null,null,"مصرى"]
[null,203,"محمد مصطفي محمد ابو زيد حنيش","ÐßÑ",null,null,30306291500036,"2003-06-29",2,3,20,"مصطفي محمد ابو زيد حنيش",null,null,"خامس",null,null,"مصرى"]
[null,204,"محمد معتز عبدالحى محمود","ÐßÑ",null,null,30309281501297,"2003-09-28",3,0,20,"معتز عبدالحى محمود",null,null,"خامس",null,null,"مصرى"]
[null,205,"محمد نجاح محمد احمد","ÐßÑ",null,null,30404011500879,"2004-04-01",0,6,19,"نجاح محمد احمد",null,null,"خامس",null,null,"مصرى"]
[null,206,"محمد وائل عبد الحميد نصار سليمان","ÐßÑ",null,null,30401011515532,"2004-01-01",0,9,19,"وائل عبد الحميد نصار سليمان",null,null,"خامس",null,null,"مصرى"]
[null,207,"محمود ابراهيم محمد البسيوني","ÐßÑ",null,null,30210281500855,"2002-10-28",3,11,20,"ابراهيم محمد البسيوني",null,null,"خامس",null,null,"مصرى"]
[null,208,"محمود ابراهيم محمد محمد سلطان","ÐßÑ",null,null,30305071500373,"2003-05-07",24,4,20,"ابراهيم محمد محمد سلطان",null,null,"خامس",null,null,"مصرى"]
[null,209,"محمود احمد عوض احمد متولي","ÐßÑ",null,null,30304051500613,"2003-04-05",26,5,20,"احمد عوض احمد متولي",null,null,"خامس",null,null,"مصرى"]
[null,210,"محمود احمد مصطفي سند","ÐßÑ",null,null,30306171500253,"2003-06-17",14,3,20,"احمد مصطفي سند",null,null,"خامس",null,null,"مصرى"]
[null,211,"محمود امام فؤاد  محمد","ÐßÑ",null,null,30302128800612,"2003-02-12",19,7,20,"امام فؤاد  محمد",null,null,"خامس",null,null,"مصرى"]
[null,212,"محمود حامد عبده حامد","ÐßÑ",null,null,30309251503996,"2003-09-25",6,0,20,"حامد عبده حامد",null,null,"خامس",null,null,"مصرى"]
[null,213,"محمود حسن صبحي الدولتلي","ÐßÑ",null,null,30302141500539,"2003-02-14",17,7,20,"حسن صبحي الدولتلي",null,null,"خامس",null,null,"مصرى"]
[null,214,"محمود خالد عباس عثمان","ÐßÑ",null,null,30310201501176,"2003-10-20",11,11,19,"خالد عباس عثمان",null,null,"خامس",null,null,"مصرى"]
[null,215,"محمود رشاد شحاتة محمود","ÐßÑ",null,null,30307251500994,"2003-07-25",6,2,20,"رشاد شحاتة محمود",null,null,"خامس",null,null,"مصرى"]
[null,216,"محمود رضا عطاالله مرسي","ÐßÑ",null,null,30301271500119,"2003-01-27",4,8,20,"رضا عطاالله مرسي",null,null,"خامس",null,null,"مصرى"]
[null,217,"محمود سامي محمد احمد","ÐßÑ",null,null,30203211503117,"2002-03-21",10,6,21,"سامي محمد احمد",null,null,"خامس",null,null,"مصرى"]
[null,218,"محمود سعد عبد اللطيف محمود","ÐßÑ",null,null,30305051500113,"2003-05-05",26,4,20,"سعد عبد اللطيف محمود",null,null,"خامس",null,null,"مصرى"]
[null,219,"محمود سمير عبدالمجيد اسماعيل","ÐßÑ",null,null,30303271500391,"2003-03-27",4,6,20,"سمير عبدالمجيد اسماعيل",null,null,"سادس",null,null,"مصرى"]
[null,220,"محمود شكري محمد سعادة","ÐßÑ",null,null,30312171500431,"2003-12-17",14,9,19,"شكري محمد سعادة",null,null,"سادس",null,null,"مصرى"]
[null,221,"محمود عبدالتواب على يوسف","ÐßÑ",null,null,30302021500039,"2003-02-02",29,7,20,"عبدالتواب على يوسف",null,null,"سادس",null,null,"مصرى"]
[null,222,"محمود عبدالعال بسيونى طلحه","ÐßÑ",null,null,30402011504219,"2004-02-01",0,8,19,"عبدالعال بسيونى طلحه",null,null,"سادس",null,null,"مصرى"]
[null,223,"محمود علاء الدين مرسى المغازى","ÐßÑ",null,null,30310241500253,"2003-10-24",7,11,19,"علاء الدين مرسى المغازى",null,null,"سادس",null,null,"مصرى"]
[null,224,"محمود فتحى على عبدة رزق هيكل","ÐßÑ",null,null,30309201508075,"2003-09-20",11,0,20,"فتحى على عبدة رزق هيكل",null,null,"سادس",null,null,"مصرى"]
[null,225,"محمود محمد الدسوقى متولى","ÐßÑ",null,null,30303291500274,"2003-03-29",2,6,20,"محمد الدسوقى متولى",null,null,"سادس",null,null,"مصرى"]
[null,226,"محمود محمد طاهر حتاته","ÐßÑ",null,null,30310011514557,"2003-10-01",0,0,20,"محمد طاهر حتاته",null,null,"سادس",null,null,"مصرى"]
[null,227,"محمود محمد عبد ربه عبد العال","ÐßÑ",null,null,30312011504457,"2003-12-01",0,10,19,"محمد عبد ربه عبد العال",null,null,"سادس",null,null,"مصرى"]
[null,228,"محمود محمد عبدالحي الشامي","ÐßÑ",null,null,30304171500617,"2003-04-17",14,5,20,"محمد عبدالحي الشامي",null,null,"سادس",null,null,"مصرى"]
[null,229,"محمود محمد عبدالمنعم محمد","ÐßÑ",null,null,30309271502171,"2003-09-27",4,0,20,"محمد عبدالمنعم محمد",null,null,"سادس",null,null,"مصرى"]
[null,230,"محمود نورالدين حنفي محمد","ÐßÑ",null,null,30302022503236,"2003-02-02",29,7,20,"نورالدين حنفي محمد",null,null,"سادس",null,null,"مصرى"]
[null,231,"محمود هانى عبد الجميل منصور","ÐßÑ",null,null,30309301503836,"2003-09-30",1,0,20,"هانى عبد الجميل منصور",null,null,"سادس",null,null,"مصرى"]
[null,232,"محمود يسرى صابر رمضان","ÐßÑ",null,null,30304241500253,"2003-04-24",7,5,20,"يسرى صابر رمضان",null,null,"سادس",null,null,"مصرى"]
[null,233,"مروان محمد محمد عبدالرحيم","ÐßÑ",null,null,30211041501354,"2002-11-04",27,10,20,"محمد محمد عبدالرحيم",null,null,"سادس",null,null,"مصرى"]
[null,234,"مصطفى احمد حسن الخميسي","ÐßÑ",null,null,30306141500658,"2003-06-14",17,3,20,"احمد حسن الخميسي",null,null,"سادس",null,null,"مصرى"]
[null,235,"مصطفى اسامة مصطفي بديوي","ÐßÑ",null,null,30301011526432,"2003-01-01",0,9,20,"اسامة مصطفي بديوي",null,null,"سادس",null,null,"مصرى"]
[null,236,"مصطفى السعيد صابر خطاب","ÐßÑ",null,null,30402181500412,"2004-02-18",13,7,19,"السعيد صابر خطاب",null,null,"سادس",null,null,"مصرى"]
[null,237,"مصطفى رأفت عبدالعزيز المنوفي","ÐßÑ",null,null,30207011504971,"2002-07-01",0,3,21,"رأفت عبدالعزيز المنوفي",null,null,"سادس",null,null,"مصرى"]
[null,238,"مصطفى عبدالله محمد خميس","ÐßÑ",null,null,30308181500351,"2003-08-18",13,1,20,"عبدالله محمد خميس",null,null,"سادس",null,null,"مصرى"]
[null,239,"مصطفى كامل السعيد جمال الدين","ÐßÑ",null,null,30310011514492,"2003-10-01",0,0,20,"كامل السعيد جمال الدين",null,null,"سادس",null,null,"مصرى"]
[null,240,"مصطفى محمد الشحات بهجات","ÐßÑ",null,null,30306031500776,"2003-06-03",28,3,20,"محمد الشحات بهجات",null,null,"سادس",null,null,"مصرى"]
[null,241,"مصطفى محمد عبداللطيف عبدالكريم","ÐßÑ",null,null,30301011503033,"2003-01-01",0,9,20,"محمد عبداللطيف عبدالكريم",null,null,"سادس",null,null,"مصرى"]
[null,242,"معاذ حسن محمد سعد","ÐßÑ",null,null,30304031500536,"2003-04-03",28,5,20,"حسن محمد سعد",null,null,"سادس",null,null,"مصرى"]
[null,243,"مهند اشرف محمد جاب الله","ÐßÑ",null,null,30308241500933,"2003-08-24",7,1,20,"اشرف محمد جاب الله",null,null,"سادس",null,null,"مصرى"]
[null,244,"مؤمن ايهاب فرج غازي","ÐßÑ",null,null,30305101501337,"2003-05-10",21,4,20,"ايهاب فرج غازي",null,null,"سادس",null,null,"مصرى"]
[null,245,"مؤمن محمد رمضان عبدالحميد","ÐßÑ",null,null,30309291500612,"2003-09-29",2,0,20,"محمد رمضان عبدالحميد",null,null,"سادس",null,null,"مصرى"]
[null,246,"ميلاد وديع مجدي غبريال","ÐßÑ",null,null,30211301500152,"2002-11-30",1,10,20,"وديع مجدي غبريال",null,null,"سادس",null,null,"مصرى"]
[null,247,"نادر محمد ممدوح عوض","ÐßÑ",null,null,30402091500278,"2004-02-09",22,7,19,"محمد ممدوح عوض",null,null,"سادس",null,null,"مصرى"]
[null,248,"نور رجب فرج عبداللطيف","ÐßÑ",null,null,30306231500231,"2003-06-23",8,3,20,"رجب فرج عبداللطيف",null,null,"سادس",null,null,"مصرى"]
[null,249,"هشام  رضا  زكريا محمد بيلي","ÐßÑ",null,null,30308291500233,"2003-08-29",2,1,20,"رضا  زكريا محمد بيلي",null,null,"سادس",null,null,"مصرى"]
[null,250,"وائل محمد راشد محمد عبدربه","ÐßÑ",null,null,30304201501419,"2003-04-20",11,5,20,"محمد راشد محمد عبدربه",null,null,"سادس",null,null,"مصرى"]
[null,251,"وليد عبدالسلام عبدالحميد محمد","ÐßÑ",null,null,30309011509539,"2003-09-01",0,1,20,"عبدالسلام عبدالحميد محمد",null,null,"سادس",null,null,"مصرى"]
[null,252,"وليد محمد احمد ابراهيم عوض","ÐßÑ",null,null,30306031500113,"2003-06-03",28,3,20,"محمد احمد ابراهيم عوض",null,null,"سادس",null,null,"مصرى"]
[null,253,"يحيي عصام الدين حسن مفتاح","ÐßÑ",null,null,30302171500274,"2003-02-17",14,7,20,"عصام الدين حسن مفتاح",null,null,"سادس",null,null,"مصرى"]
[null,254,"يوسف احمد قطب البحيري","ÐßÑ",null,null,30307171500756,"2003-07-17",14,2,20,"احمد قطب البحيري",null,null,"سادس",null,null,"مصرى"]
[null,255,"يوسف سمير عبدالعزيز سلام","ÐßÑ",null,null,30309131500195,"2003-09-13",18,0,20,"سمير عبدالعزيز سلام",null,null,"سادس",null,null,"مصرى"]
[null,256,"يوسف صفوت نسيم يوسف","ÐßÑ",null,null,30308011502872,"2003-08-01",0,2,20,"صفوت نسيم يوسف",null,null,"سادس",null,null,"مصرى"]
[null,{"$f":"IF(C268=\"\",\"\",ROW()-11+$L$1)","v":257},"يوسف محمود يوسف مبروك",{"$f":"Kh_Date_Sex_Province(G268,2)","v":"ÐßÑ"},null,null,30310011514379,{"$f":"Kh_Date_Sex_Province($G268,1)","v":"2003-10-01"},{"$f":"IF(H268=\"\",\"\",IF(H268>1,DATEDIF(H268,$J$9,\"MD\"),\"\"))","v":0},{"$f":"IF(H268=\"\",\"\",IF(H268>1,DATEDIF(H268,$J$9,\"ym\"),\"\"))","v":0},{"$f":"IF(H268=\"\",\"\",IF(H268>1,DATEDIF(H268,$J$9,\"y\"),\"\"))","v":20},{"$f":"Kh_Father_Name(C268)","v":"محمود يوسف مبروك"},null,null,"سادس",null,null,"مصرى"]
[null,258,"يوسف موسى رمضان درباله مبروك","ÐßÑ",null,null,30306281500097,"2003-06-28",3,3,20,"موسى رمضان درباله مبروك",null,null,"سادس",null,null,"مصرى"]
[null,259,"يوليوس مجدي جميل حنا","ÐßÑ",null,null,30306241500035,"2003-06-24",7,3,20,"مجدي جميل حنا",null,null,"سادس",null,null,"مصرى"]
[null,"",null,"",null,null,null,"","","","",""]
[null,"",null,"",null,null,null,"","","","",""]
[null,"",null,"",null,null,null,"","","","",""]
[null,"",null,"",null,null,null,"","","","",""]
[null,"",null,"",null,null,null,"","","","",""]
[null,"",null,"",null,null,null,"","","","",""]
[null,"",null,"",null,null,null,"","","","",""]
[null,"",null,"",null,null,null,"","","","",""]
[null,"",null,"",null,null,null,"","","","",""]
[null,"",null,"",null,null,null,"","","","",""]
[null,"",null,"",null,null,null,"","","","",""]
[null,"",null,"",null,null,null,"","","","",""]
[null,"",null,"",null,null,null,"","","","",""]
[null,"",null,"",null,null,null,"","","","",""]
[null,"",null,"",null,null,null,"","","","",""]
[null,"",null,"",null,null,null,"","","","",""]
[null,"",null,"",null,null,null,"","","","",""]
[null,"",null,"",null,null,null,"","","","",""]
[null,"",null,"",null,null,null,"","","","",""]
[null,"",null,"",null,null,null,"","","","",""]
[null,"",null,"",null,null,null,"","","","",""]
[null,"",null,"",null,null,null,"","","","",""]
[null,"",null,"",null,null,null,"","","","",""]
[null,"",null,"",null,null,null,"","","","",""]
[null,"",null,"",null,null,null,"","","","",""]
[null,"",null,"",null,null,null,"","","","",""]
[null,"",null,"",null,null,null,"","","","",""]
[null,"",null,"",null,null,null,"","","","",""]
[null,"",null,"",null,null,null,"","","","",""]
[null,"",null,"",null,null,null,"","","","",""]
[null,"",null,"",null,null,null,"","","","",""]
[null,"",null,"",null,null,null,"","","","",""]
[null,"",null,"",null,null,null,"","","","",""]
[null,"",null,"",null,null,null,"","","","",""]
[null,"",null,"",null,null,null,"","","","",""]
[null,"",null,"",null,null,null,"","","","",""]
[null,"",null,"",null,null,null,"","","","",""]
[null,"",null,"",null,null,null,"","","","",""]
[null,"",null,"",null,null,null,"","","","",""]
[null,"",null,"",null,null,null,"","","","",""]
[null,"",null,"",null,null,null,"","","","",""]
[null,"",null,"",null,null,null,"","","","",""]
[null,"",null,"",null,null,null,"","","","",""]
[null,"",null,"",null,null,null,"","","","",""]
[null,"",null,"",null,null,null,"","","","",""]
[null,"",null,"",null,null,null,"","","","",""]
[null,"",null,"",null,null,null,"","","","",""]
[null,"",null,"",null,null,null,"","","","",""]
[null,"",null,"",null,null,null,"","","","",""]
[null,"",null,"",null,null,null,"","","","",""]
[null,"",null,"",null,null,null,"","","","",""]
[null,"",null,"",null,null,null,"","","","",""]
[null,"",null,"",null,null,null,"","","","",""]
[null,"",null,"",null,null,null,"","","","",""]
[null,"",null,"",null,null,null,"","","","",""]
[null,"",null,"",null,null,null,"","","","",""]
[null,"",null,"",null,null,null,"","","","",""]
[null,"",null,"",null,null,null,"","","","",""]
[null,"",null,"",null,null,null,"","","","",""]
[null,"",null,"",null,null,null,"","","","",""]
[null,"",null,"",null,null,null,"","","","",""]
[null,{"$f":"IF(C332=\"\",\"\",ROW()-11+$L$1)","v":""},null,{"$f":"Kh_Date_Sex_Province(G332,2)","v":""},null,null,null,{"$f":"Kh_Date_Sex_Province($G332,1)","v":""},{"$f":"IF(H332=\"\",\"\",IF(H332>1,DATEDIF(H332,$J$9,\"MD\"),\"\"))","v":""},{"$f":"IF(H332=\"\",\"\",IF(H332>1,DATEDIF(H332,$J$9,\"ym\"),\"\"))","v":""},{"$f":"IF(H332=\"\",\"\",IF(H332>1,DATEDIF(H332,$J$9,\"y\"),\"\"))","v":""},{"$f":"Kh_Father_Name(C332)","v":""}]
[null,"",null,"",null,null,null,"","","","",""]
[null,"",null,"",null,null,null,"","","","",""]
[null,"",null,"",null,null,null,"","","","",""]
[null,"",null,"",null,null,null,"","","","",""]
[null,"",null,"",null,null,null,"","","","",""]
[null,"",null,"",null,null,null,"","","","",""]
[null,"",null,"",null,null,null,"","","","",""]
[null,"",null,"",null,null,null,"","","","",""]
[null,"",null,"",null,null,null,"","","","",""]
[null,"",null,"",null,null,null,"","","","",""]
[null,"",null,"",null,null,null,"","","","",""]
[null,"",null,"",null,null,null,"","","","",""]
[null,"",null,"",null,null,null,"","","","",""]
[null,"",null,"",null,null,null,"","","","",""]
[null,"",null,"",null,null,null,"","","","",""]
[null,"",null,"",null,null,null,"","","","",""]
[null,"",null,"",null,null,null,"","","","",""]
[null,"",null,"",null,null,null,"","","","",""]
[null,"",null,"",null,null,null,"","","","",""]
[null,"",null,"",null,null,null,"","","","",""]
[null,"",null,"",null,null,null,"","","","",""]
[null,"",null,"",null,null,null,"","","","",""]
[null,"",null,"",null,null,null,"","","","",""]
[null,"",null,"",null,null,null,"","","","",""]
[null,"",null,"",null,null,null,"","","","",""]
[null,"",null,"",null,null,null,"","","","",""]
[null,"",null,"",null,null,null,"","","","",""]
[null,"",null,"",null,null,null,"","","","",""]
[null,"",null,"",null,null,null,"","","","",""]
[null,"",null,"",null,null,null,"","","","",""]
[null,"",null,"",null,null,null,"","","","",""]
[null,"",null,"",null,null,null,"","","","",""]
[null,"",null,"",null,null,null,"","","","",""]
[null,"",null,"",null,null,null,"","","","",""]
[null,"",null,"",null,null,null,"","","","",""]
[null,"",null,"",null,null,null,"","","","",""]
[null,"",null,"",null,null,null,"","","","",""]
[null,"",null,"",null,null,null,"","","","",""]
[null,"",null,"",null,null,null,"","","","",""]
[null,"",null,"",null,null,null,"","","","",""]
[null,"",null,"",null,null,null,"","","","",""]
[null,"",null,"",null,null,null,"","","","",""]
[null,"",null,"",null,null,null,"","","","",""]
[null,"",null,"",null,null,null,"","","","",""]
[null,"",null,"",null,null,null,"","","","",""]
[null,"",null,"",null,null,null,"","","","",""]
[null,"",null,"",null,null,null,"","","","",""]
[null,"",null,"",null,null,null,"","","","",""]
[null,"",null,"",null,null,null,"","","","",""]
[null,"",null,"",null,null,null,"","","","",""]
[null,"",null,"",null,null,null,"","","","",""]
[null,"",null,"",null,null,null,"","","","",""]
[null,"",null,"",null,null,null,"","","","",""]
[null,"",null,"",null,null,null,"","","","",""]
[null,"",null,"",null,null,null,"","","","",""]
[null,"",null,"",null,null,null,"","","","",""]
[null,"",null,"",null,null,null,"","","","",""]
[null,"",null,"",null,null,null,"","","","",""]
[null,"",null,"",null,null,null,"","","","",""]
[null,"",null,"",null,null,null,"","","","",""]
[null,"",null,"",null,null,null,"","","","",""]
[null,"",null,"",null,null,null,"","","","",""]
[null,"",null,"",null,null,null,"","","","",""]
[null,{"$f":"IF(C396=\"\",\"\",ROW()-11+$L$1)","v":""},null,{"$f":"Kh_Date_Sex_Province(G396,2)","v":""},null,null,null,{"$f":"Kh_Date_Sex_Province($G396,1)","v":""},{"$f":"IF(H396=\"\",\"\",IF(H396>1,DATEDIF(H396,$J$9,\"MD\"),\"\"))","v":""},{"$f":"IF(H396=\"\",\"\",IF(H396>1,DATEDIF(H396,$J$9,\"ym\"),\"\"))","v":""},{"$f":"IF(H396=\"\",\"\",IF(H396>1,DATEDIF(H396,$J$9,\"y\"),\"\"))","v":""},{"$f":"Kh_Father_Name(C396)","v":""}]
[null,{"$f":"IF(C397=\"\",\"\",ROW()-11+$L$1)","v":""},null,{"$f":"Kh_Date_Sex_Province(G397,2)","v":""},null,null,null,{"$f":"Kh_Date_Sex_Province($G397,1)","v":""},{"$f":"IF(H397=\"\",\"\",IF(H397>1,DATEDIF(H397,$J$9,\"MD\"),\"\"))","v":""},{"$f":"IF(H397=\"\",\"\",IF(H397>1,DATEDIF(H397,$J$9,\"ym\"),\"\"))","v":""},{"$f":"IF(H397=\"\",\"\",IF(H397>1,DATEDIF(H397,$J$9,\"y\"),\"\"))","v":""},{"$f":"Kh_Father_Name(C397)","v":""}]
[null,{"$f":"IF(C398=\"\",\"\",ROW()-11+$L$1)","v":""},null,{"$f":"Kh_Date_Sex_Province(G398,2)","v":""},null,null,null,{"$f":"Kh_Date_Sex_Province($G398,1)","v":""},{"$f":"IF(H398=\"\",\"\",IF(H398>1,DATEDIF(H398,$J$9,\"MD\"),\"\"))","v":""},{"$f":"IF(H398=\"\",\"\",IF(H398>1,DATEDIF(H398,$J$9,\"ym\"),\"\"))","v":""},{"$f":"IF(H398=\"\",\"\",IF(H398>1,DATEDIF(H398,$J$9,\"y\"),\"\"))","v":""},{"$f":"Kh_Father_Name(C398)","v":""}]
[null,{"$f":"IF(C399=\"\",\"\",ROW()-11+$L$1)","v":""},null,{"$f":"Kh_Date_Sex_Province(G399,2)","v":""},null,null,null,{"$f":"Kh_Date_Sex_Province($G399,1)","v":""},{"$f":"IF(H399=\"\",\"\",IF(H399>1,DATEDIF(H399,$J$9,\"MD\"),\"\"))","v":""},{"$f":"IF(H399=\"\",\"\",IF(H399>1,DATEDIF(H399,$J$9,\"ym\"),\"\"))","v":""},{"$f":"IF(H399=\"\",\"\",IF(H399>1,DATEDIF(H399,$J$9,\"y\"),\"\"))","v":""},{"$f":"Kh_Father_Name(C399)","v":""}]